Workbook

Sheet Home
AN1: 0 | AO1: =COUNT(AN2:AN131) -> 127 | AP1: Results | AQ1: 1 | AR1: Risk Level | AU1: Begun | AW1: industry
H2: HOME PAGE | AN2: 0 | AO2: X | AQ2: 0 | AU2: FALSE | AW2: 0
AN3: 0 | AO3: Back A entered = 1 | AU3: =COUNTIF(AN1:AN28,">0")+COUNTIF(AN30:AN105,">0")+COUNTIF(AN119:AN122,">0")+COUNTIF(AN124:AN131,">0") -> 0
AN4: 0 | AO4: Back B entered = 1 | AU4: 0
H5: Welcome to the Physical Job Evaluation Checklist! | AN5: 0 | AO5: Back A (posture) | AP5: QEC Back | AQ5: =QEC!I2 -> 0 | AR5: =IF(AQ5=0,0,IF(AQ5<QEC!J3,1,IF(AQ5<QEC!J4,2,IF(AQ5<QEC!J5,3,IF(AQ5>QEC!J5,4,0))))) -> 0 | AW5: =QEC!J3 -> 15
AN6: 0 | AW6: =QEC!J4 -> 23
H7: This checklist is intended to help the user determine the level of risk of developing work-related musculoskeletal disorders and injuries (WMSDs) through the observation and measurement of the work performed. Users of the checklist will be able to identify high risk jobs and be able to prioritize injury prevention efforts. This checklist can also be used to evaluate injury prevention solutions by comparing pre- and post-solution results. This tool cannot, however, predict injury or provide specific suggestions or solutions for reducing risk. | AN7: 0 | AO7: =IF(OR(AW2=1,AW2=4),AN44,IF(OR(AW2=2,AW2=3),AN8,0)) -> 0 | AP7: WA Neck | AR7: =IF(AN8=3,3,IF(AN8=2,2,IF(AN8=1,1,0))) -> 0 | AS7: =IF(Home!AO7=0,"",) ->  | AT7: =IF(Home!AO7=1,Forms!E149,IF(Home!AO7=2,Forms!L150,IF(Home!AO7=3,Forms!L151,""))) ->  | AU7: =IF(Home!AO7=1,Forms!L132,IF(Home!AO7=2,"Flexed more than 30 degrees more than 2 hours/day",IF(Home!AO7=3,"Flexed more than 45 degrees more than 4 hours/day",""))) ->  | AV7: =IF(OR(AW2=1,AW2=2),AT7,AU7) ->  | AW7: =QEC!J5 -> 29
AN8: 0 | AO8: WA Neck | AT8: =AT9&AO6 -> 
AN9: 0 | AO9: Back B (movements) | AP9: WA Squatting | AR9: =IF(AN10=3,3,IF(AN10=2,2,IF(AN10=1,1,0))) -> 0 | AT9: =IF(OR(AN9=1,AN9=2),"When seated or standing: ",IF(OR(AN9=3,AN9=4,AN9=5),"When lifting, carrying, or pushing/pulling: ","")) -> 
AN10: 0 | AO10: Squatting
AN11: 0 | AO11: Kneeling | AP11: WA Kneeling | AR11: =IF(AN11=3,3,IF(AN11=2,2,IF(AN11=1,1,0))) -> 0 | AT11: Other FC factors:
H12: INSTRUCTIONS | AN12: 0 | AO12: WA Foot Control | AP12: =COUNTA(AT12:AT14) -> 0
H13: 1 | I13: Select the industry sector you are working with by clicking SELECT INDUSTRY. | AN13: 0 | AO13: squat entered = 1 | AP13: WA Repetitive Foot | AR13: =(AN12+AP12)-AS14 -> 0
H14: =H13+1 -> 2 | I14: To collect observational data, begin by clicking PRINT PAPER FORM. | AN14: 0 | AO14: sitting entered = 1 | AS14: =COUNTA(AT12:AT14) -> 0
H15: 3 | I15: Print a copy of the form for each job/task you plan to assess. | AN15: 0 | AO15: Sitting
H16: 4 | I16: Observe the work performed by the worker as you fill out each page of the form. | AN16: 0 | AO16: kneel entered = 1 | AP16: WA Risk Sit | AR16: =IF(AN15=3,3,IF(AN15=2,2,IF(AN15=1,1,0))) -> 0
H17: 5 | I17: After completing the form, return to this screen, select your industry, and click LAUNCH CHECKLIST. | AN17: 0 | AO17: stand entered = 1
H18: 6 | I18: Transfer your information from the paper form to the fields in the electronic checklist. | AN18: 0 | AO18: Standing
H19: 7 | I19: For some sections of the checklist, certain fields are required to calculate risk. However, you are not required to complete all sections. | AN19: 0 | AP19: WA Risk Stand | AR19: =IF(AN18=3,3,IF(AN18=2,2,IF(AN18=1,1,0))) -> 0
H20: 8 | I20: Based on the results of the job report, consider ways you can change work practices and improve processes at your organization in order to minimize worker risk. | AN20: 0 | AO20: Max Wt Handled QEC H | AQ20: Yes | AR20: No | AU20: =SQRT(1440) -> 37.94733192
AN21: 0 | AO21: Work Duration | AQ21: =IF(MAX(AQ22:AQ25)=1,2,0) -> 0 | AR21: =IF(SUM(AR22:AR25)=4,1,0) -> 0 | AS21: =IF(AN29="",0,MAX(MAX(AQ21:AR21),BE21)) -> 0 | AU21: =SQRT(AU22) -> 0.503487835
AN22: 0 | AO22: Lifting Duration | AP22: heavy 1 | AQ22: 0 | AR22: 0 | AS22: =SUM(AQ22:AR22) -> 0 | AU22: =AU24*AU23 -> 0.2535
AN23: 0 | AO23: Lifting Dur entered = 1 | AP23: frequent | AQ23: 0 | AR23: 0 | AS23: =SUM(AQ23:AR23) -> 0 | AU23: =AU25*AU26 -> 1.56
AN24: 0 | AO24: Lifting Frequency | AP24: awkward | AQ24: 0 | AR24: 0 | AS24: =SUM(AQ24:AR24) -> 0 | AU24: =AU26/8 -> 0.1625
AN25: 0 | AO25: Lifting Frw entered = 1 | AP25: heavy2 | AQ25: 0 | AR25: 0 | AS25: =SUM(AQ25:AR25) -> 0 | AT25: hr | AU25: 1.2
AN26: 0 | AO26: Frequency: | AQ26: =SUM(AQ22:AQ25) -> 0 | AR26: =SUM(AR22:AR25) -> 0 | AS26: =SUM(AQ26:AR26) -> 0 | AT26: vb | AU26: 1.3
AN27: 0 | AO27: TLV | AP27: TLV Limit | AQ27: =IF(OR(AN22=0,AN24=0,AN29=0,AN32=0),1000,IF(AW2<=3,TLV!H7,IF(AN28=1,1,0.1))) -> 1000 | AR27: =IF($AN$29/AQ27>2,3,IF($AN$29/AQ27>1,2,IF(AQ27=0.1,3,IF(AQ27=1000,0,IF(AN25=1,1))))) -> 0 | AU27: =SQRT(AU25*AU26/8) -> 0.4415880433
AN28: 0 | AQ28: =AQ27*2 -> 2000 | AR28: TLV
H29: Developed in Excel 2010 for Windows. Other versions may cause errors. | AE29: Ver. 1.0, September 2016 | AN29: 0 | AO29: Lifting Weight | AQ29: =AQ27*3 -> 3000 | AT29: Frq | AU29: Prx
H30: Recommended screen resolution is 1920x1080. | AN30: 0 | AP30: Calc Lift Limit: | AQ30: =IF(AW2<4,AQ27,AQ33) -> 1000 | AR30: =IF(AW2<4,AR27,AR33) -> 0 | AS30: =IF(AW2<=3,AR28,AR32) -> TLV | AT30: =IF(AS30="TLV",AN24,AN24+4) -> 0 | AU30: =IF(AS30="TLV",AN35,AN35+3) -> 0
AN31: 0 | AO31: Lifting vert entered = 1
AN32: 0 | AO32: Lifting Vertical | AR32: WA | AT32: Lifting
AN33: 0 | AP33: WA Lifting Limit | AQ33: =TLV!H45*TLV!H51*AN36 -> 0 | AR33: =IF(AN29>AQ33,3,IF(AND(AQ26=0,AR26>0),1,IF(AQ26>0,2,IF(AN28=1,1,IF(AN28=0,IF(AN29<AQ33,1,AQ21)))))) -> 0 | AT33: Duration
AN34: 0 | AO34: Lifting hor entered = 1 | AT34: Frequency
AN35: 0 | AO35: Lifting Horizontal | AT35: Proximity
AN36: 0 | AO36: WA Lifting Twisting | AT36: Hand height
AN37: 0 | AP37: QEC Shoulder | AQ37: =QEC!I8 -> 0 | AR37: =IF(AQ37>41,4,IF(AQ37>31,3,IF(AQ37>21,2,IF(AQ37>0,1,0)))) -> 0
AN38: 0 | AO38: QEC Shdr Ht
AN39: 0
AN40: 0 | AO40: Shdr Frq entered = 1
AN41: 0 | AO41: QEC SHdr Frqcy
AN42: 0
AN43: 0 | AP43: QEC Neck | AQ43: =QEC!I18 -> 0 | AR43: =IF(AQ43=0,0,IF(AQ43>=12,3,IF(AQ43>7,2,1))) -> 0
AN44: 0 | AO44: QEC Neck
AN45: 0 | AO45: QECNeck entered = 1 | AT45: N/A
AN46: 0 | AT46: N/A
AN47: 0 | AO47: QEC Visual Demand | AT47: ="Moderate vibration tools: "&AT45 -> Moderate vibration tools: N/A
AN48: 0 | AT48: =IF(AT47<>"","; ","") -> ;
AN49: 0 | AO49: Mod/HI Vib Tools | AP49: =SUM(AN49:AN50) -> 0 | AQ49: WA Vib | AR49: =SUM(AN49:AN50)/2 -> 0 | AT49: ="High vibration tools: "&AT46 -> High vibration tools: N/A
AN50: 0 | AT50: =AT47&AT48&AT49 -> Moderate vibration tools: N/A; High vibration tools: N/A
AN51: 0 | AP51: WA Risk Shoulder | AR51: =AN51 -> 0 | AT51: =IF(AR51=1,Forms!E120,IF(AR51=2,Forms!E121,IF(AR51=3,Forms!E122,""))) -> 
AN52: 0 | AP52: =COUNTA(AO50:AO53) -> 0
AN53: 0 | AP53: WA Risk Grip | AR53: =AN54 -> 0
AN54: 0 | AP54: hours grip
AN55: 0 | AO55: Pinch Grip | AP55: WA Risk Pinch | AR55: =AN56 -> 0
AN56: 0 | AP56: hours pinch
AN57: 0 | AO57: Impact Hand | AP57: WA Impact | AS57: =IF(AND(AN57=0,AN62=1),"No",IF(AN57=1,"2 hours or less per day",IF(Home!AN57=2,">10 times per hour for more than 2 hours total per day",IF(AN57=3,"More than once per minute for more than 2 hours total per day","")))) -> 
AN58: 0
AN59: 0
AN60: 0 | AP60: =COUNTA(AO58:AO61) -> 0
AN61: 0
AN62: 0 | AO62: Impact entered = 1 | AP62: WA Risk Repetition | AQ62: 2 | AR62: =IF(AN63=1,1,IF(AND(AN63=2,AN64=1),2,3)) -> 3
AN63: 0 | AO63: WA REP 1
AN64: 0 | AO64: WA REP 2
AN65: 0
AN66: 0 | AO66: key,dur entered = 1
AP67: WA Risk Keying | AQ67: 0 | AR67: =SUM(AN68:AN69) -> 0
AO68: Keying, duration
AO69: N/A
AN70: 0 | AO70: key, post entered = 1
AN71: 0
AN72: 0 | AO72: SI force entered = 1
AN73: 0 | AO73: SI Force
AN74: 0 | AO74: Dur of Exert
AN75: 0 | AO75: Dur of exert ent = 1
AN76: 0 | AO76: DutyCycle | AP76: Exertion time
AN77: 0 | AO77: =IF(AQ77=0,0,AQ76/(AQ76+AQ77)) -> 0 | AP77: Recovery Time
AN78: 0 | AO78: SI Frq entered = 1
AN79: 0 | AO79: SI Frequency
AN80: 0
AN81: 0 | AO81: SI post entered = 1
AN82: 0 | AO82: SI Posture
AN83: 0
AN84: 0 | AO84: SI speed entered = 1
AN85: 0 | AO85: SI Speed
AN86: 0
AN87: 0 | AO87: SI Dur entered = 1
AN88: 0 | AO88: SI Duration | AP88: SI Score | AQ88: ='Strain Index'!F36 -> 0 | AR88: =IF(AQ88=0,"",IF(AQ88<3,1,IF(AQ88>7,3,2))) -> 
AN89: 0
AN90: 0 | AO90: EU WBV | AP90: EU Vibration | AQ90: TCT | AR90: =Vibration!$G$3 -> 0
AN91: 0 | AO91: EU HAV | AQ91: VCT | AR91: =Vibration!$G$14 -> 0
AN92: 0 | AO92: QEC Vibration | AP92: QEC Vibration | AQ92: =QEC!I21 -> 0 | AR92: =AN92 -> 0
AN93: 0 | AO93: QECvib entered = 1 | AP93: =IF(AN92=1,Forms!#REF!,IF(AN92=2,Forms!#REF!,IF(AN92=3,Forms!#REF!,""))) -> 
AN94: 0 | AO94: Pace entered = 1
AN95: 0 | AO95: QEC Pace | AP95: QEC Pace | AQ95: =QEC!I22 -> 0 | AR95: =AN95 -> 0
AN96: 0
AN97: 0 | AO97: Stress entered = 1
AN98: 0 | AO98: QEC Stress | AP98: QEC Stress | AQ98: =QEC!I23 -> 0 | AR98: =AN98 -> 0
AN99: 0 | AO99: EU WBV Screen ent = 1 | AW99: =IF(OR(SQRT(SUMSQ(BA91:BA94))<0,AW95>24)," ",SQRT(SUMSQ(BA91:BA94))) -> 0
AN100: 0 | AO100: EU WBV Screen | AS100: WBV | AT100: =IF(AN102=1,1,IF(AN102=2,2,IF(AN102=3,3,IF(AN100=1,4,IF(AN100=2,5,IF(AN100=3,6,0)))))) -> 0
AN101: 0 | AO101: Carry ht entered = 1
AN102: 0 | AO102: QEC Driving | AP102: QEC Driving Score | AQ102: =QEC!I20 -> 0 | AR102: =AN102 -> 0
AN103: 0 | AO103: Carry dist entered = 1
AN104: 0
AN105: 0 | AO105: LM | AP105: LM Carry Limit | AQ105: =LM!C7 -> 0 | AR105: =IF($AQ$105<=0,0,IF($AN$107/$AQ$105>3,4,IF($AN$107/$AQ$105>2,3,IF($AN$107/$AQ$105>1,2,1)))) -> 0 | AU105: Carrying
AN106: 0 | AO106: Carry Height | AU106: Distance
AN107: 0 | AO107: Carry Weight | AP107: LM Carry L1 | AR107: =IF($AQ$110<=10,3,IF(AND(75>$AQ$110,10<$AQ$110),2,1)) -> 3 | AU107: Height
AN108: 0 | AO108: Carry Frqncy | AP108: LM Carry L2 | AR108: =IF(25>=$AQ$110,4,IF(AND(25<$AQ$110,50>=$AQ$110),3,IF(AND(50<$AQ$110,75>$AQ$110),2,1))) -> 4 | AU108: Frequency
AN109: 0 | AO109: Carry Distance | AQ109: 33
AN110: 0 | AP110: LM Carry % | AQ110: =LM!C12 -> 0
AN111: 0
AN112: 0
AN113: 0
AN114: 0 | AO114: maintenance
AN115: 0 | AO115: food carts
AN116: 0 | AO116: moving patients | AQ116: =MIN(AQ118:AQ119) -> 0
AN117: 0 | AO117: INIT Force | AP117: Initial Force
AN118: 0 | AO118: Push Frqncy | AP118: LM Push Limit | AQ118: =LM!C20 -> 0 | AR118: =IF($AQ$118<=0,0,IF($AN$117/AQ118>3,4,IF($AN$117/AQ118>2,3,IF($AN$117/AQ118>1,2,1)))) -> 0
AN119: 0 | AP119: LM Pull Limit | AQ119: =LM!C36 -> 0 | AR119: =IF($AQ$119<=0,0,IF($AN$117/AQ119>3,4,IF($AN$117/AQ119>2,3,IF($AN$117/AQ119>1,2,1)))) -> 0
AN120: 0 | AO120: Push Height | AR120: 0
AN121: 0 | AO121: Push ht entered = 1 | AP121: Push 1 | AR121: =IF($AQ$124<=10,3,IF(AND(75>$AQ$124,10<$AQ$124),2,1)) -> 3
AN122: 0 | AP122: Pull 1 | AR122: =IF($AQ$125<=10,3,IF(AND(75>$AQ$125,10<$AQ$125),2,1)) -> 3
AN123: 0 | AO123: Push Distance | AQ123: 37.4 | AR123: 0
AN124: 0 | AP124: LM Push % | AQ124: =LM!C25 -> 0
AN125: 0 | AP125: LM Pull % | AQ125: =LM!C41 -> 0
AN126: 0
AN127: 0
AN128: 0
AN129: 0
AN130: 0
AN131: 0
AP132: Push 2 | AR132: =IF(25>=$AQ$124,4,IF(AND(25<$AQ$124,50>=$AQ$124),3,IF(AND(50<$AQ$124,75>$AQ$124),2,1))) -> 4
AP133: Pull 2 | AR133: =IF(25>=$AQ$125,4,IF(AND(25<$AQ$125,50>=$AQ$125),3,IF(AND(50<$AQ$125,75>$AQ$125),2,1))) -> 4
AR134: 0
AN139: MMH Sort
AN140: 49.9999 | AO140: lifting
AN141: 0.4 | AO141: carrying
AN142: 31.4 | AO142: pushing/pulling

Sheet Report (hidden)
L1: =Home!AW2 -> 0 | M1: . | P1: REPORT
D2: Assessment | M2: Assessment | N2: For list
D3: Prolonged sitting | L3: =IF(Home!AN14=1,0,Home!AN15) -> 0 | M3: =IF(L3=1,$N$3,IF(L3=2,$N$5,IF(L3=3,$N$6,IF(L3=4,$N$7,"N/A")))) -> N/A | N3: Low Risk
M4: .
A5: Back | B5: =COUNTIF(L5:L11,"=0") -> 5 | D5: Back posture | L5: =Home!$AR$5 -> 0 | M5: =IF(L5=1,$N$3,IF(L5=2,$N$5,IF(L5=3,$N$6,IF(L5=4,$N$7,"N/A")))) -> N/A | N5: Moderate Risk | P5: Work evaluated: | AO5: Completed by:
B6: =COUNTA(D5:D11) -> 7 | D6: Lifting | L6: =Home!AR30 -> 0 | M6: N/A | N6: High Risk | AO6: Analyzed on:
D7: Pushing/Pulling | L7: =IF(OR(Home!AN120=0,Home!AN118=0,Home!AN123=0),0,Home!$AR$134) -> 0 | M7: N/A | N7: Very High Risk
D8: Whole body vibration | J8: EU | L8: =Vibration!F20 -> 0 | M8: N/A | P8: Manual Material Handling Limits
D9: Carrying | L9: =IF(OR(Home!$AN$106=0,Home!$AN$107=0,Home!$AN$108=0,Home!$AN$109=0),0,IF(Home!$AW$2=1,Home!$AR$107,Home!$AR$108)) -> 0 | M9: N/A | AW9: 0
D10: Driving | L10: -1 | M10: N/A | AW10: 0
D11: Standing | L11: -1 | M11: N/A | AW11: 0
M12: .
A13: Shoulder | B13: =COUNTIF(L13:L18,"=0") -> 5 | D13: Shoulder posture | L13: =IF(OR(Home!AN38=0,Home!AN41=0),0,Home!AR37) -> 0 | M13: =IF(L13=1,$N$3,IF(L13=2,$N$5,IF(L13=3,$N$6,IF(L13=4,$N$7,"N/A")))) -> N/A
B14: =COUNTA(D13:D18) -> 6 | D14: Neck posture | L14: =IF($L$1=0,-1,IF(OR($L$1=1,$L$1=4,$L$1=6,$L$1=5),Home!AR43,IF(OR($L$1=2,$L$1=3),Home!AN8))) -> -1 | M14: N/A
D15: Lifting | L15: =Home!AR30 -> 0 | M15: N/A
D16: Pushing/Pulling | L16: =IF(OR(Home!AN120=0,Home!AN117=0,Home!AN118=0,Home!AN123=0),0,Home!$AR$134) -> 0 | M16: N/A
D17: Carrying | L17: =IF(OR(Home!AN106=0,Home!AN108=0,Home!AN109=0),0,IF(Home!AW2=1,Home!$AR$107,Home!$AR$108)) -> 0 | M17: N/A
D18: I.V. management | L18: =IF($L$1=0,0,IF($L$1>1,-1,Home!AN51)) -> 0 | M18: N/A | BA18: JOB BASICS:
M19: .
A20: Hand/wrist | B20: =COUNTIF(L21:L28,"=0") -> 7 | D20: Pinch gripping | L20: =Home!AN56 -> 0 | M20: =IF(L20=1,$N$3,IF(L20=2,$N$5,IF(L20=3,$N$6,IF(L20=4,$N$7,"N/A")))) -> N/A
B21: =COUNTA(D20:D25) -> 6 | D21: Power gripping | L21: =IF($L$1=1,-1,Home!AN54) -> 0 | M21: N/A
D22: Typing/keying | L22: =IF(Home!AO67="No, does not involve intensive typing or keying.",1,IF(AND(Home!AN67=1,Home!AN68=0,Home!AN66=1),1,IF(AND(Home!AN68=2,Home!AN69=0),2,Home!$AR$67))) -> 0 | M22: N/A
D23: Hand-arm vibration | L23: =Vibration!F11 -> 0 | M23: N/A
D24: =IF($L$1<6,"Hand exertion","Highly repetitive motion") -> Hand exertion | L24: =IF($L$1=6,Home!AN63,IF(OR(Home!AN73=0,Home!AN74=0,Home!AN79=0,Home!AN82=0,Home!AN85=0,Home!AN88=0),0,Home!$AR$88)) -> 0 | M24: N/A
D25: Hand impact | L25: =IF($L$1=0,0,IF($L$1<>2,-1,IF(AND(Home!AN57=0,Home!AN62=1),1,Home!AN57))) -> 0 | M25: N/A
M26: .
A27: Knee | B27: =COUNTIF(L27:L30,"=0") -> 3 | D27: Kneeling | L27: =IF($L$1=0,0,IF($L$1=1,-1,IF(Home!AN16=0,0,Home!AN11))) -> 0 | M27: =IF(L27=1,$N$3,IF(L27=2,$N$5,IF(L27=3,$N$6,IF(L27=4,$N$7,"N/A")))) -> N/A
B28: =COUNTA(D27:D30) -> 4 | D28: Squatting | L28: =IF($L$1=0,0,IF($L$1=1,-1,IF(Home!AN13=0,0,Home!AN10))) -> 0 | M28: =IF(L28=1,$N$3,IF(L28=2,$N$5,IF(L28=3,$N$6,IF(L28=4,$N$7,"N/A")))) -> N/A
D29: Foot control(s) | L29: =IF(OR($L$1=1,$L$1=5),-1,Home!AR13) -> 0 | M29: =IF(L29=1,$N$3,IF(L29=2,$N$5,IF(L29=3,$N$6,IF(L29=4,$N$7,"N/A")))) -> N/A
D30: Standing | L30: -1 | M30: =IF(L30=1,$N$3,IF(L30=2,$N$5,IF(L30=3,$N$6,IF(L30=4,$N$7,"N/A")))) -> N/A
M31: .
A32: OWE | B32: =COUNTIF(L32:L34,"=0") -> 2 | D32: Work-related stress | L32: =IF(Home!AN97=0,0,Home!AN98) -> 0 | M32: =IF(L32=1,$N$3,IF(L32=2,$N$5,IF(L32=3,$N$6,IF(L32=4,$N$7,"N/A")))) -> N/A
B33: =COUNTA(D32:D33) -> 2 | D33: Pace of Work | L33: =IF(Home!AN94=0,0,Home!AN95) -> 0 | M33: =IF(L33=1,$N$3,IF(L33=2,$N$5,IF(L33=3,$N$6,IF(L33=4,$N$7,"N/A")))) -> N/A
M34: .
M35: .
A36: =SUM(B6,B14,B21,B28,B33) -> 25 | B36: risk level items | M36: .
A37: 3 | B37: risk levels | M37: .
A38: =(A36)^A37 -> 15625 | B38: ="risk reports in "&P2 -> risk reports in | M38: .
M39: .
A40: =Home!AQ88 -> 0 | B40: SI | M40: =IF(P39="","o",1) -> o
M41: =IF(P40="","o",1) -> o
M42: =IF(P41="","o",1) -> o
M43: =IF(P42="","o",1) -> o
M44: 1
M45: 1
L46: 1 | M46: =IF(N46=1,1,"o") -> 1 | N46: 1 | O46: Physical Job Evaluation DATA
M47: =IF(N47=1,1,"o") -> 1 | N47: 1 | O47: This page contains all the data used in the calculations which generated the above report.
M48: =IF(N48=1,1,"o") -> 1 | N48: 1 | O48: Observations Made By: | X48: =IF(AS5="","",AS5) ->  | AK48: Date: | AN48: =IF(AS6="","",AS6) -> 
M49: =IF(N49=1,1,"o") -> 1 | N49: 1 | O49: Job Basics | Q49: Work Description | X49: =IF(V5="","",V5) -> 
M50: =IF(N50=1,1,"o") -> 1 | N50: 1 | Q50: Work Duration | X50: =IF(Home!AN21=0,"",IF(Home!AN21=1,Forms!E12& " per day", IF(Home!AN21=2,Forms!E13& " per day", IF(Home!AN21=3,Forms!E14& " per day","")))) -> 
M51: 1 | N51: =COMPARISON!$AJ$3 -> 1 | Q51: Max Weight Handled | X51: =IF(Home!AN20=0,"",IF(Home!AN20=1,"Light (11 lbs. or less)",IF(Home!AN20=2,"Moderate (12 to 22 lbs.)",IF(Home!AN20=3,"Heavy (23 to 44 lbs.)",IF(Home!AN20=4,"Very heavy (more than 44 lbs.)",""))))) -> 
M52: 1 | N52: =COMPARISON!$AJ$4 -> 1 | Q52: Pace of Work | X52: =IF(Home!AN95=0,"",IF(Home!AN95=1,Forms!E27&" difficult to keep up",IF(Home!AN95=2,Forms!E28&" difficult to keep up",IF(Home!AN95=3,Forms!E29&" difficult to keep up","")))) -> 
M53: 1 | N53: =COMPARISON!$AJ$5 -> 1 | Q53: Stress | X53: =IF(Home!AN98=0,"",IF(Home!AN98=1,Forms!E34,IF(Home!AN98=2,Forms!E35,IF(Home!AN98=3,Forms!E36,IF(Home!AN98=4,Forms!E37,""))))) -> 
M54: 1 | N54: =COMPARISON!$AJ$7 -> 1 | O54: Back | Q54: Back Position | X54: =IF(Home!AT8="","",Home!AT8) -> 
M55: 1 | N55: =COMPARISON!$AJ$8 -> 1 | Q55: Back Activity | X55: =IF(Home!AN4=1,"",IF(Home!AN5=1,Forms!E44,IF(Home!AN5=2,Forms!E45,IF(Home!AN5=3,Forms!E46,"")))) -> 
M56: o | N56: ="o" -> o | Q56: =IF(Home!AP6="","Moving/Stationary",Home!AP6) -> Moving/Stationary | X56: =IF(Home!AN4=1,"",IF(Home!AN9=1,"Not static most of the time",IF(Home!AN9=2,"Static back posture most of the time",IF(Home!AN9=3,Forms!F61,IF(Home!AN9=4,Forms!F62,IF(Home!AN9=5,Forms!F63,"")))))) -> 
M57: 1 | N57: =COMPARISON!$AJ$17 -> 1 | O57: Shdr/Neck | Q57: Hand Position | X57: =IF(Home!AN37=1,"",IF(Home!AN38=1,Forms!E102,IF(Home!AN38=2,Forms!E103,IF(Home!AN38=3,Forms!E104,"")))) -> 
M58: 1 | N58: =COMPARISON!$AJ$17 -> 1 | Q58: Shoulder Movements | X58: =IF(Home!AN40=1,"",IF(Home!AN41=1,Forms!E108,IF(Home!AN41=2,Forms!E109,IF(Home!AN41=3,Forms!E110,"")))) -> 
M59: 1 | N59: 1 | Q59: Neck Bending | X59: =IF(Home!AN8=1,"In neutral posture",IF(Home!AN8=2,"Flexed more than 30 degrees, more than 2 hours/day",IF(Home!AN8=3,"Flexed more than 45 degrees, more than 4 hours/day",IF(Home!AN44=1,Forms!E149,IF(Home!AN44=2,Forms!E150,IF(Home!AN44=3,Forms!E151,"")))))) -> 
M60: 1 | N60: =COMPARISON!$AJ$23 -> 1 | Q60: Visual Demands | X60: =IF(Home!AN47=0,"",IF(Home!AN47=1,Forms!E155,IF(Home!AN47=2,Forms!E156,""))) -> 
M61: =IF(N61=1,1,"o") -> 1 | N61: =COMPARISON!$AJ$18 -> 1 | Q61: I.V. Management | X61: =IF(Home!AT51="","",Home!AT51) -> 
M62: 1 | N62: =COMPARISON!$AJ$14 -> 1 | O62: Work Pos- tures | Q62: Squatting | X62: =IF(Home!AN13=0,"",IF(Home!AN10=1,Forms!E84,IF(Home!AN10=2,Forms!E85,IF(Home!AN10=3,Forms!E86,"")))) -> 
M63: 1 | N63: =COMPARISON!$AJ$14 -> 1 | Q63: Kneeling | X63: =IF(Home!AN16=0,"",IF(Home!AN11=1,Forms!E91,IF(Home!AN11=2,Forms!E92,IF(Home!AN11=3,Forms!E93,"")))) -> 
M64: 1 | N64: =COMPARISON!$AJ$25 -> 1 | O64: Hand Activity | Q64: Hand Exertions | X64: =IF(Home!AO71="","",Home!AO71) -> 
M65: 1 | N65: =COMPARISON!$AJ$25 -> 1 | Q65: Daily Duration | X65: =IF(Home!AN87=0,"",IF(Home!AN88=1,Forms!F166,IF(Home!AN88=2,Forms!F167,IF(Home!AN88=3,Forms!F168,IF(Home!AN88=4,Forms!F169,IF(Home!AN88=5,Forms!F170,"")))))) -> 
M66: 1 | N66: =COMPARISON!$AJ$25 -> 1 | Q66: Speed | X66: =IF(Home!AN84=0,"",IF(Home!AN85=1,Forms!F174,IF(Home!AN85=2,Forms!F175,IF(Home!AN85=3,Forms!F176,IF(Home!AN85=4,Forms!F177,IF(Home!AN85=5,Forms!F178,"")))))) -> 
M67: 1 | N67: =COMPARISON!$AJ$25 -> 1 | Q67: Frequency | X67: =IF(Home!AN78=0,"",IF(Home!AN79=1,Forms!F182,IF(Home!AN79=2,Forms!F183,IF(Home!AN79=3,Forms!F184,IF(Home!AN79=4,Forms!F185,IF(Home!AN79=5,Forms!F186,"")))))) -> 
M68: 1 | N68: =COMPARISON!$AJ$25 -> 1 | Q68: Exertion Duration | X68: =IF(Home!AN74=0,"",IF(Home!AN74=1,Forms!F195,IF(Home!AN74=2,Forms!F196,IF(Home!AN74=3,Forms!F197,IF(Home!AN74=4,Forms!F198,IF(Home!AN74=5,Forms!F199)))))) -> 
M69: 1 | N69: =COMPARISON!$AJ$25 -> 1 | Q69: Force | X69: =IF(Home!AN72=0,"",IF(Home!AN73=1,Forms!F203,IF(Home!AN73=2,Forms!F204,IF(Home!AN73=3,Forms!F205,IF(Home!AN73=4,Forms!F206,IF(Home!AN73=5,Forms!F207,"")))))) -> 
M70: 1 | N70: =COMPARISON!$AJ$25 -> 1 | Q70: Posture | X70: =IF(Home!AN81=0,"",IF(Home!AN82=1,Forms!F211,IF(Home!AN82=2,Forms!F212,IF(Home!AN82=3,Forms!F213,IF(Home!AN82=4,Forms!F214,IF(Home!AN82=5,Forms!F215,"")))))) -> 
M71: =IF(N71=1,1,"o") -> 1 | N71: =COMPARISON!$AJ$32 -> 1 | O71: Repetition | Q71: Forceful Hand Impacts | X71: =Home!AS57 -> 
M72: =IF(N72=1,1,"o") -> 1 | N72: =COMPARISON!$AJ$35 -> 1 | Q72: Foot Controls | X72: =IF(Home!AR13=0,"",IF(Home!AR13=1,"≤2 hours a day, or none",IF(AND(Home!AN12>=2,Home!AP12>0),Forms!E290&Home!AT12&Home!AT13&Home!AT14,IF(Home!AN12=3,Forms!E294,"")))) -> 
M73: 1 | N73: =COMPARISON!AJ31 -> 1 | Q73: Rep. Hand Motions | X73: =(IF(Home!AN63=1,Forms!E264,IF(Home!AN63=2,Forms!E265,IF(Home!AN63=3,Forms!E266,"")))) -> 
M74: 1 | N74: =COMPARISON!AJ31 -> 1 | R74: involving: | X74: =(Home!AP63&Home!AP64&Home!AP65&Home!AP66) -> 
M75: =IF(N75=1,1,"o") -> 1 | N75: =COMPARISON!$AJ$30 -> 1 | Q75: Intensive Keying | X75: =IF(Home!AN67=0,"",IF(Home!AN67>0,Home!AO67,"")) -> 
M76: 1 | N76: =COMPARISON!$AJ$30 -> 1 | Q76: Typing Duration | X76: =IF(Home!$AN$66=0,IF(X75<>"","N/A",""),IF(Home!$AN$68=0,"4 hours/day or less",IF(Home!$AN$68=1,">4 to 7 hours/day",IF(Home!$AN$68=2,">7 hours/day","N/A")))) -> 
M77: 1 | N77: =COMPARISON!$AJ$30 -> 1 | Q77: Typing Wrist Posture | X77: =IF(X75="","",IF(Home!AN68=0,"N/A",IF(Home!AN67=2,Home!$AP$69&Home!$AP$70&Home!$AP$71&Home!$AP$72))) -> 
M78: 1 | N78: =COMPARISON!$AJ$36 -> 1 | O78: Gripping | Q78: Pinch Grip Duration | X78: =IF(Home!AO56=0,"",Home!AO56&" hours total per day") -> 
M79: 1 | N79: =COMPARISON!$AJ$36 -> 1 | Q79: Additional Risk Factors | X79: =IF(Home!AP60=0,IF(X78<>"","NA",""),IF(OR(Home!AN56=0,Home!AN56=1),"NA",Home!AO58&Home!AO59&Home!AO60&Home!AO61)) -> 
M80: 1 | N80: =COMPARISON!$AJ$36 -> 1 | Q80: Power Grip Duration | X80: =IF(Home!AO54=0,"",IF(Home!AO54>0,Home!AO54&" hours total per day")) -> 
M81: 1 | N81: =COMPARISON!$AJ$36 -> 1 | Q81: Additional Risk Factors | X81: =IF(Home!AP52=0,IF(X80<>"","N/A",""),IF(OR(Home!AN54=0,Home!AN54=1),"NA",Home!AO50&Home!AO51&Home!AO52&Home!AO53)) -> 
M82: 1 | N82: 1 | O82: Moderate Risk Lifting | Q82: Lifting > 75 lbs. | X82: =IF(Home!AQ22=1,"75+ pounds once per day",IF(Home!AR22=1,"No",IF(Home!AS26>0,"N/A",""))) -> 
M83: 1 | N83: 1 | Q83: Lifting > 55 lbs. | X83: =IF(Home!AQ25=1,"55+ pounds more than 10 times a day",IF(Home!AR25=1,"No",IF(Home!AS26>0,"N/A",""))) -> 
M84: 1 | N84: 1 | Q84: Frequent Lifting | X84: =IF(Home!AQ23=1,"10+ pounds, more than twice per minute, more than 2 hours total per day",IF(Home!AR23=1,"No",IF(Home!AS26>0,"N/A",""))) -> 
M85: 1 | N85: 1 | Q85: Awkward Lifting | X85: =IF(Home!AQ24=1,"25+ pounds above the shoulders, below the knees, or at arms length more than 25 times per day",IF(Home!AR24=1,"No",IF(Home!AS26>0,"N/A",""))) -> 
M86: 1 | N86: =COMPARISON!$AJ$41 -> 1 | O86: =IF($L$1>3,"High Risk Lifting","Lifting") -> Lifting | Q86: Lifting Activity | X86: =IF(Home!AO28="","",Home!AO28) -> 
M87: 1 | N87: =COMPARISON!$AJ$41 -> 1 | Q87: Weight Lifted | X87: =IF(Home!$AN$29=0,"",Home!$AN$29 & " lbs.") -> 
M88: =IF(N88=1,1,"o") -> 1 | N88: =COMPARISON!$AJ$41 -> 1 | Q88: Duration | X88: =IF(Home!AN22=0,"",Home!AV33) -> 
M89: =IF(N89=1,1,"o") -> 1 | N89: =COMPARISON!AJ43 -> 1 | Q89: Twisting
M90: 1 | N90: =COMPARISON!$AJ$41 -> 1 | Q90: Frequency | X90: =IF(Home!AV34=0,"",Home!AV34) -> 
M91: 1 | N91: =COMPARISON!$AJ$41 -> 1 | Q91: Proximity | X91: =IF(Home!AV35=0,"",Home!AV35) -> 
M92: 1 | N92: =COMPARISON!$AJ$41 -> 1 | Q92: Hand Height | X92: =IF(Home!AV36=0,"",Home!AV36) ->  | AO92: =IF(AP92="","","Twisting while lifting:") -> 
M93: 1 | N93: =COMPARISON!$AJ$45 -> 1 | O93: Carrying | Q93: Carrying Activity | X93: =IF(Home!AO104="","",Home!AO104) -> 
M94: 1 | N94: =COMPARISON!$AJ$45 -> 1 | Q94: Maximum Weight | X94: =IF(OR(Home!AN101=0,Home!AN103=0),"",Home!AN107&" lbs.") -> 
M95: 1 | N95: =COMPARISON!$AJ$45 -> 1 | Q95: Distance | X95: =IF(Home!AN103=0,"",Home!AW106) -> 
M96: 1 | N96: =COMPARISON!$AJ$45 -> 1 | Q96: Elbow Posture | X96: =IF(Home!AN101=0,"",Home!AW107) -> 
M97: 1 | N97: =COMPARISON!$AJ$45 -> 1 | Q97: Frequency | X97: =IF(Home!AT108="","","Once every "&Home!AT108) -> 
M98: 1 | N98: =COMPARISON!$AJ$50 -> 1 | O98: Pushing/Pulling | Q98: Push/Pull Activity | X98: =IF(Home!AO119=0,"",Home!AO119) -> 
M99: 1 | N99: =COMPARISON!$AJ$50 -> 1 | Q99: Effort Type | X99: =IF(Home!AT117="","",Home!AT117) -> 
M100: 1 | N100: =COMPARISON!$AJ$50 -> 1 | Q100: Maximum Force(s) | X100: =IF(OR(Home!AN117=0,Home!AN117=""),"",Home!AN117&" lbs.") -> 
M101: 1 | N101: =COMPARISON!$AJ$50 -> 1 | Q101: Distance | X101: =IF(Home!AT123="","",Home!AT123) -> 
M102: 1 | N102: =COMPARISON!$AJ$50 -> 1 | Q102: Hand Height | X102: =IF(Home!AN120=0,"",IF(Home!AN120=1,Forms!$F$509,IF(Home!AN120=2,Forms!$F$510,IF(Home!AN120=3,Forms!$F$511,"")))) -> 
M103: 1 | N103: =COMPARISON!$AJ$50 -> 1 | Q103: Frequency | X103: =IF(OR(Home!AN118="",Home!AN118=0),"",Home!AT118) -> 
M104: 1 | N104: =COMPARISON!$AJ$54 -> 1 | O104: Vibration | Q104: Vibrating Hand Tools | X104: =IF(COMPARISON!AJ55=1,IF(Home!AN93=0,"",IF(Home!AN92=1,Forms!E531,IF(Home!AN92=2,Forms!$E$532,IF(Home!AN92=3,Forms!$E$533,"")))),IF(COMPARISON!AJ55="o",IF(Home!AP49=0,"",Home!AT47))) ->  | AU104: =IF(AU106&AU107&AU108&AU109&AU110&AU111<>"","Total Vibration","") -> 
M105: =IF(N105=1,1,"o") -> o | N105: =IF(AND(X105="",AT105=""),0,1) -> 0 | X105: =IF(Home!AN50=0,"",Home!AT49) ->  | AT105: =IF(AU107&AU108&AU109&AU110&AU111&AU112<>"",Vibration!F10,"") ->  | AU105: =IF(AT105="","","m/s2") -> 
M106: =IF(N106=1,1,"o") -> o | N106: =Vibration!G4 -> 0 | Q106: Tool 1 | X106: =Vibration!B4&" "&Vibration!C4 ->  | AT106: =IF(Vibration!F4="","",Vibration!F4) ->  | AU106: =IF(AT106="","","m/s2") -> 
M107: o | N107: =Vibration!G5 -> 0 | Q107: Tool 2 | X107: =Vibration!B5&" "&Vibration!C5 ->  | AT107: =IF(Vibration!F5="","",Vibration!F5) -> 
M108: o | N108: =Vibration!G6 -> 0 | Q108: Tool 3 | X108: =Vibration!B6&" "&Vibration!C6 ->  | AT108: =IF(Vibration!F6="","",Vibration!F6) -> 
M109: =IF(N109=1,1,"o") -> o | N109: =Vibration!G7 -> 0 | Q109: Tool 4 | X109: =Vibration!B7&" "&Vibration!C7 ->  | AT109: =IF(Vibration!F7="","",Vibration!F7) -> 
M110: o | N110: =Vibration!G8 -> 0 | Q110: Tool 5 | X110: =Vibration!B8&" "&Vibration!C8 ->  | AN110: =IF(Vibration!D8="","","Vibration:") ->  | AO110: =IF(Vibration!E8="","",Vibration!E8&" m/s2") ->  | AQ110: =IF(Vibration!D8="","",Vibration!D8&" hrs/day") ->  | AT110: =IF(Vibration!F8="","",Vibration!F8) -> 
M111: o | N111: =Vibration!G9 -> 0 | Q111: Tool 6 | X111: =Vibration!B9&" "&Vibration!C9 ->  | AN111: =IF(Vibration!D9="","","Vibration:") ->  | AO111: =IF(Vibration!E9="","",Vibration!E9&" m/s2") ->  | AQ111: =IF(Vibration!D9="","",Vibration!D9&" hrs/day") ->  | AT111: =IF(Vibration!F9="","",Vibration!F9) -> 
M112: =IF(N112=1,1,"o") -> 1 | N112: =COMPARISON!$AJ$61 -> 1 | Q112: Driving | X112: =IF(Home!AT100=1,Forms!E574,IF(Home!AT100=2,Forms!E575,IF(Home!AT100=3,Forms!E576,""))) -> 
M113: 1 | N113: =COMPARISON!$AJ$62 -> 1 | Q113: Whole Body Vibration | X113: =IF(Vibration!F20=0,"",IF(Vibration!F20=1,"Less than 2 hours per day",IF(Vibration!F20>=2,"2 hours or more per day",""))) ->  | AN113: =IF(Vibration!D19="","","Total Vibration:") -> Total Vibration: | AT113: =IF(AU114&AU115&AU116&AU117<>"",Vibration!F19,"") ->  | AU113: =IF(AT113="","","m/s2") -> 
M114: o | N114: =Vibration!G15 -> 0 | Q114: Vehicle 1 | X114: =IF(AND(Vibration!B15="",Vibration!C15=""),"",Vibration!B15&", "&Vibration!C15) ->  | AN114: =IF(Vibration!D15="","","Vibration:") ->  | AO114: =IF(Vibration!E15="","",Vibration!E15&" m/s2") ->  | AQ114: =IF(Vibration!D15="","",Vibration!D15&" hrs/day") ->  | AT114: =IF(Vibration!F15="","",Vibration!F15) ->  | AU114: =IF(AT114="","","m/s2") -> 
M115: o | N115: =Vibration!G16 -> 0 | Q115: Vehicle 2 | X115: =IF(AND(Vibration!B16="",Vibration!C16=""),"",Vibration!B16&", "&Vibration!C16) ->  | AN115: =IF(Vibration!D16="","","Vibration:") ->  | AO115: =IF(Vibration!E16="","",Vibration!E16&" m/s2") ->  | AQ115: =IF(Vibration!D16="","",Vibration!D16&" hrs/day") ->  | AT115: =IF(Vibration!F16="","",Vibration!F16) ->  | AU115: =IF(AT115="","","m/s2") -> 
M116: o | N116: =Vibration!G17 -> 0 | Q116: Vehicle 3 | X116: =IF(AND(Vibration!B17="",Vibration!C17=""),"",Vibration!B17&", "&Vibration!C17) ->  | AN116: =IF(Vibration!D17="","","Vibration:") ->  | AO116: =IF(Vibration!E17="","",Vibration!E17&" m/s2") ->  | AQ116: =IF(Vibration!D17="","",Vibration!D17&" hrs/day") ->  | AT116: =IF(Vibration!F17="","",Vibration!F17) ->  | AU116: =IF(AT116="","","m/s2") -> 
M117: o | Q117: Vehicle 4 | X117: =IF(AND(Vibration!B18="",Vibration!C18=""),"",Vibration!B18&", "&Vibration!C18) ->  | AC117: =IF(Home!AU94="","","a(x):") ->  | AN117: =IF(Vibration!D18="","","Vibration:") ->  | AO117: =IF(Vibration!E18="","",Vibration!E18&" m/s2") ->  | AQ117: =IF(Vibration!D18="","",Vibration!D18&" hrs/day") ->  | AT117: =IF(Vibration!F18="","",Vibration!F18) ->  | AU117: =IF(AT117="","","m/s2") -> 
L118: =IF(M118=1,1,"") ->  | M118: =IF(M119=1,1,"o") -> o
M119: =IF(Q118&R118&Q119&R119<>"",1,"o") -> o
M120: =IF(Q119&R119&Q120&R120<>"",1,"o") -> o
M121: =IF(Q120&R120&Q121&R121<>"",1,"o") -> o
M122: =IF(Q121&R121&Q122&R122<>"",1,"o") -> o
M123: o
M124: o
M125: o
M126: o
M127: o
M128: o
M129: o
M130: o
M131: o
M132: o
M133: o
M134: o
M135: o
M136: o
M137: o
M138: o
M139: o
M140: o
M141: o
M142: o
M143: o
M144: o
M145: o
M146: o
M147: o
M148: o
M149: o
M150: o
M151: o
M152: o
M153: o
M154: o
M155: o
M156: o
M157: o
M158: o
M159: o
M160: o
M161: o
M162: o
M163: o
M164: o
M165: o
M166: o
M167: o
M168: o
M169: o
M170: o
M171: o
M172: o
M173: o
M174: o
M175: o
M176: o
M177: o
M178: o
M179: o
M180: o
M181: o
M182: o
M183: o
M184: o
M185: o
M186: =IF(Q185&R185&Q186&R186<>"",1,"o") -> o
M187: o
M188: o
M189: o
M190: o
M191: o
M192: o
M193: o
M194: o
M195: o
M196: o
M197: o
M198: o
M199: o
M200: o
... 1062 more rows

Sheet Forms (hidden)
B1: Job Basics | AJ1: 1 | AK1: =COMPARISON!$AJ$2 -> 1 | AL1: 1 | AM1: 2 | AN1: 3 | AO1: 4 | AP1: 5 | AQ1: 6 | AR1: 1 | AS1: =IF(AK1=1,1,IF(AK1="","",0)) -> 1 | AT1: 1 | AU1: 18
AJ2: 4 | AR2: 1 | AS2: =IF(AK2=1,1,IF(AK2="","",0)) ->  | AT2: 2 | AU2: 20
A3: Observations made by: | S3: Date: | AJ3: 1 | AR3: 2 | AT3: 3 | AU3: 25
AJ4: 1 | AR4: 2 | AT4: 4 | AU4: 36
AJ5: 1 | AR5: 1 | AT5: 5 | AU5: 45
A6: Describe the work (job, task, or activity) being performed that you are evaluating (referred to hereafter as the "work"): | AJ6: 1 | AR6: 4 | AT6: 6 | AU6: 65
AJ7: 1 | AR7: 5 | AT7: 7 | AU7: 140
AJ8: 1 | AR8: 9 | AT8: 8 | AU8: 14
B9: WORK DURATION | AJ9: 1 | AR9: 9 | AT9: 9 | AU9: 9
AJ10: 1 | AR10: 9 | AT10: 10 | AU10: 11
C11: On average, how much time is spent per day performing this work? | AJ11: 1 | AR11: 1
D12: £ | E12: Less than 2 hours | AJ12: 1 | AR12: 1
D13: £ | E13: 2 to 4 hours | AJ13: 1 | AR13: 1
D14: £ | E14: More than 4 hours | AJ14: 1 | AR14: 2
AJ15: 1 | AR15: 9
B16: MAXIMUM WEIGHT HANDLED | AJ16: 1 | AR16: 9
AJ17: 1 | AR17: 9
C18: Is the maximum weight handled MANUALLY BY THE WORKER in this work: | AJ18: 1 | AR18: 1
D19: £ | E19: Light (11 lbs. or less) | AJ19: 1 | AR19: 1
D20: £ | E20: Moderate (12 to 22 lbs.) | AJ20: 1 | AR20: 1
D21: £ | E21: Heavy (23 to 44 lbs.) | AJ21: 1 | AR21: 1
D22: £ | E22: Very heavy (more than 44 lbs.) | AJ22: 1 | AR22: 2
AJ23: 1 | AR23: 9
B24: PACE OF WORK | AJ24: 1 | AR24: 9
AJ25: 1 | AR25: 9
C26: Does the worker find it difficult to keep up with this work? | AJ26: 1 | AR26: 1
D27: £ | E27: Never | AJ27: 1 | AR27: 1
D28: £ | E28: Sometimes | AJ28: 1 | AR28: 1
D29: £ | E29: Often | AJ29: 1 | AR29: 2
AJ30: 1 | AR30: 9
B31: WORK RELATED STRESS | AJ31: 1 | AR31: 9
AJ32: 1 | AR32: 9
C33: In general, does the worker find this work: | AJ33: 1 | AR33: 1
D34: £ | E34: Not at all stressful | AJ34: 1 | AR34: 1
D35: £ | E35: Mildly stressful | AJ35: 1 | AR35: 1
D36: £ | E36: Moderately stressful | AJ36: 1 | AR36: 1
D37: £ | E37: Very stressful | AJ37: 1 | AR37: 2
A38: NOTES: | AJ38: =COMPARISON!$AJ$6 -> 1 | AR38: 1
B39: Back | AJ39: 1 | AK39: 1 | AL39: =$AK$39 -> 1 | AM39: 1 | AN39: 1 | AO39: 1 | AP39: 1 | AQ39: 1 | AR39: 1 | AS39: 1
AJ40: 1 | AR40: 9
B41: BACK POSITION | AJ41: 1 | AR41: 9
AJ42: 1 | AR42: 9
C43: When performing this work, which of the following best describes the back posture? (Select the WORST CASE situation) | AJ43: 1 | AR43: 1
D44: £ | E44: Almost neutral | X44: COMPLETE BACK ACTIVITY BELOW | AJ44: 1 | AR44: 1
D45: £ | E45: Moderately flexed, twisted, or bent to the side | AJ45: 1 | AR45: 1
D46: £ | E46: Excessively flexed, twisted, or bent to the side | AJ46: 1 | AR46: 2
AJ47: 1 | AR47: 9
B48: BACK ACTIVITY | AJ48: 1 | AR48: 9
AJ49: 1 | AR49: 9
C50: Select ONLY ONE of the two following work options: | AJ50: 1 | AR50: 2
AJ51: ="o" -> o | AR51: 1
C52: EITHER: | F52: STATIONARY | AJ52: 1 | AR52: 9
AJ53: 1 | AR53: 9
D54: For seated or standing stationary work, does the back remain in a static position most of the time? | AJ54: 1 | AR54: 4
E55: £ | F55: No | AJ55: 1 | AR55: 1
E56: £ | F56: Yes | AJ56: 1 | AR56: 2
AJ57: 1 | AR57: 8
C58: OR: | F58: MOVING | AJ58: 1 | AR58: 9
AJ59: 1 | AR59: 9
D60: For lifting, pushing/pulling, and carrying work (i.e. moving a load), is the movement of the back: | AJ60: 1 | AR60: 4
E61: £ | F61: Infrequent (~3 times/minute or less) | AJ61: 1 | AR61: 1
E62: £ | F62: Frequent (~8 times/minute or less) | AJ62: 1 | AR62: 1
E63: £ | F63: Very frequent (~12 times/minute or more) | AJ63: 1 | AR63: 2
AJ64: 1 | AR64: 8
AJ65: =IF($AJ$66=1,"o",1) -> o | AR65: 1 | AS65: =IF(AK65=1,1,IF(AK65="","",0)) -> 
A66: NOTES: | AJ66: =COMPARISON!$AJ$10 -> 1 | AR66: 1
B67: Work Postures | AJ67: =COMPARISON!$AJ$11 -> 1 | AK67: =IF(COMPARISON!$AJ$11=1,1,0) -> 1 | AL67: 0 | AM67: 0 | AN67: 0 | AO67: 0 | AP67: 0 | AQ67: 0 | AR67: 1 | AS67: =IF(AK67=1,1,IF(AK67="","",0)) -> 1
B68: SITTING | AJ68: =COMPARISON!$AJ$12 -> 1 | AR68: 1
AJ69: =COMPARISON!$AJ$12 -> 1 | AR69: 1
C70: Total time per day spent sitting, with limited ability to stand up: | AJ70: =COMPARISON!$AJ$12 -> 1 | AR70: 1
D71: £ | E71: Less than 2 hours | AJ71: =COMPARISON!$AJ$12 -> 1 | AR71: 1
D72: £ | E72: 2 to 4 hours | AJ72: =COMPARISON!$AJ$12 -> 1 | AR72: 1
D73: £ | E73: More than 4 hours | AJ73: =COMPARISON!$AJ$12 -> 1 | AR73: 2
B74: STANDING | AJ74: =COMPARISON!$AJ$13 -> 1 | AR74: 3
AJ75: =COMPARISON!$AJ$13 -> 1 | AR75: 1
C76: Total time per day spent standing, with limited ability to sit down: | AJ76: =COMPARISON!$AJ$13 -> 1 | AR76: 1
D77: £ | E77: Less than 2 hours | AJ77: =COMPARISON!$AJ$13 -> 1 | AR77: 1
D78: £ | E78: 2 to 6 hours | AJ78: =COMPARISON!$AJ$13 -> 1 | AR78: 1
D79: £ | E79: More than 6 hours | AJ79: =COMPARISON!$AJ$13 -> 1 | AR79: 2
AJ80: =COMPARISON!$AJ$14 -> 1 | AR80: 9
B81: SQUATTING | AJ81: =COMPARISON!$AJ$14 -> 1 | AR81: 9 | AS81: =IF(AK81=1,1,IF(AK81="","",0)) -> 
AJ82: =COMPARISON!$AJ$14 -> 1 | AR82: 9
C83: Does the work require squatting for: | AJ83: =COMPARISON!$AJ$14 -> 1 | AR83: 1
D84: £ | E84: None, or less than 2 hours per day | AJ84: =COMPARISON!$AJ$14 -> 1 | AR84: 1
D85: £ | E85: 2-4 hours total per day | AJ85: =COMPARISON!$AJ$14 -> 1 | AR85: 1
D86: £ | E86: More than 4 hours total per day | AJ86: =COMPARISON!$AJ$14 -> 1 | AR86: 2
AJ87: =COMPARISON!$AJ$14 -> 1 | AR87: 9
B88: KNEELING | AJ88: =COMPARISON!$AJ$14 -> 1 | AR88: 9 | AS88: =IF(AK88=1,1,IF(AK88="","",0)) -> 
AJ89: =COMPARISON!$AJ$14 -> 1 | AR89: 9
C90: Does the work require kneeling for: | AJ90: =COMPARISON!$AJ$14 -> 1 | AR90: 1
D91: £ | E91: None, or less than 2 hours per day | AJ91: =COMPARISON!$AJ$14 -> 1 | AR91: 1
D92: £ | E92: 2-4 hours total per day | AJ92: =COMPARISON!$AJ$14 -> 1 | AR92: 1
D93: £ | E93: More than 4 hours total per day | AJ93: =COMPARISON!$AJ$14 -> 1 | AR93: 2
A94: NOTES: | AJ94: =COMPARISON!$AJ$15 -> 1 | AR94: 1
B95: Shoulder | AJ95: 1 | AK95: 1 | AL95: =$AK$95 -> 1 | AM95: 1 | AN95: 1 | AO95: 1 | AP95: 1 | AQ95: 1 | AR95: 1 | AS95: 1
AJ96: 1 | AR96: 9
B97: SHOULDER POSTURE | AJ97: 1 | AR97: 9 | AS97: =IF(AK97=1,1,IF(AK97="","",0)) -> 
AJ98: 1 | AR98: 9
C99: HAND POSITION | AJ99: 1 | AR99: 8
AJ100: 1 | AR100: 8
C101: When this work is performed, are the hands (select the WORST case situation): | AJ101: 1 | AR101: 1
D102: £ | E102: At or below waist height | AJ102: 1 | AR102: 1
D103: £ | E103: At about chest height | AJ103: 1 | AR103: 1
D104: £ | E104: At or above shoulder height | AJ104: 1 | AR104: 2
C105: SHOULDER MOVEMENTS | AJ105: 1 | AR105: 1
AJ106: 1 | AR106: 1
C107: Describe the shoulder movement during this worst case situation: | AJ107: 1 | AR107: 1
D108: £ | E108: Infrequent (some intermittent movement) | AJ108: 1 | AR108: 1
D109: £ | E109: Frequent (regular movement) | AJ109: 1 | AR109: 1
D110: £ | E110: Very frequent (almost continuous movement) | AJ110: 1 | AR110: 2
AJ111: 1 | AR111: 1
B112: INTRAVENOUS MANANGEMENT | AJ112: =COMPARISON!$AJ$18 -> 1 | AR112: 3 | AS112: =IF(AK112=1,1,IF(AK112="","",0)) -> 
AJ113: =COMPARISON!$AJ$18 -> 1 | AR113: 9
C114: Does this work involve dispensing and maintaining intravenous medications? | AJ114: =COMPARISON!$AJ$18 -> 1 | AR114: 1
D115: £ | E115: No: PROCEED TO NEXT PAGE | AJ115: =COMPARISON!$AJ$18 -> 1 | AR115: 2
D116: £ | E116: Yes: COMPLETE OVERHEAD WORK BELOW ? | AJ116: =COMPARISON!$AJ$18 -> 1 | AR116: 3
C117: OVERHEAD WORK | AJ117: =COMPARISON!$AJ$18 -> 1 | AR117: 1
AJ118: =COMPARISON!$AJ$18 -> 1 | AR118: 1
D119: This work requires the hands to be above the head, or the elbows above the shoulder for: | AJ119: =COMPARISON!$AJ$18 -> 1 | AR119: 4
D120: £ | E120: 2 hours total per day, or less | AJ120: =COMPARISON!$AJ$18 -> 1 | AR120: 1
D121: £ | E121: More than 2 hours total per day | AJ121: =COMPARISON!$AJ$18 -> 1 | AR121: 1
D122: £ | E122: More than 4 hours total per day | AJ122: =COMPARISON!$AJ$18 -> 1 | AR122: 2
AJ123: =COMPARISON!$AJ$18 -> 1 | AR123: 1
AJ124: ="o" -> o | AR124: 9
A125: =IF(OR(Home!AW2=2,Home!AW2=3,Home!AW2=4,Home!AW2=5,Home!AW2=6),"","NOTES:") -> NOTES: | AJ125: 1 | AR125: 1
B126: Neck | AJ126: 1 | AK126: 1 | AL126: =$AK$95 -> 1 | AM126: 0 | AN126: 0 | AO126: 0 | AP126: 0 | AQ126: 0 | AR126: 1 | AS126: =IF(AK126=1,1,IF(AK126="","",0)) -> 1
AJ127: =MAX(COMPARISON!$AJ$22,COMPARISON!$AJ$21) -> 1 | AR127: 9
B128: NECK POSTURE | AJ128: =MAX(COMPARISON!$AJ$22,COMPARISON!$AJ$21) -> 1 | AR128: 9
AJ129: =MAX(COMPARISON!$AJ$22,COMPARISON!$AJ$21) -> 1 | AR129: 9
C130: What is the posture of the neck during this work? If more than one is present, please select the worst. | AJ130: =COMPARISON!$AJ$21 -> 1 | AR130: 4
AJ131: =COMPARISON!$AJ$21 -> 1 | AR131: 1
D132: £ | L132: In neutral posture | AJ132: =COMPARISON!$AJ$21 -> 1 | AR132: 2
AJ133: =COMPARISON!$AJ$21 -> 1 | AR133: 1
AJ134: =COMPARISON!$AJ$21 -> 1 | AR134: 1
AJ135: =COMPARISON!$AJ$21 -> 1 | AR135: 1
AJ136: =COMPARISON!$AJ$21 -> 1 | AR136: 1
L137: Flexed (bent forward) more than 30° (without support and the ability to vary posture) for more than 2 hours total per day | AJ137: =COMPARISON!$AJ$21 -> 1 | AR137: 1
D138: £ | AJ138: =COMPARISON!$AJ$21 -> 1 | AR138: 2
AJ139: =COMPARISON!$AJ$21 -> 1 | AR139: 1
AJ140: =COMPARISON!$AJ$21 -> 1 | AR140: 1
AJ141: =COMPARISON!$AJ$21 -> 1 | AR141: 1
L142: Flexed (bent forward) more than 45° (without support and the ability to vary posture) for more than 4 hours total per day | AJ142: =COMPARISON!$AJ$21 -> 1 | AR142: 1
D143: £ | AJ143: =COMPARISON!$AJ$21 -> 1 | AR143: 2
AJ144: =COMPARISON!$AJ$21 -> 1 | AR144: 1
AJ145: =COMPARISON!$AJ$21 -> 1 | AR145: 1
C146: NECK BENDING | AJ146: =COMPARISON!$AJ$22 -> 1 | AR146: 1
AJ147: =COMPARISON!$AJ$22 -> 1 | AR147: 1
C148: When performing this work, is the neck bent or twisted? | AJ148: =COMPARISON!$AJ$22 -> 1 | AR148: 1
D149: £ | E149: Never | AJ149: =COMPARISON!$AJ$22 -> 1 | AR149: 1
D150: £ | E150: Yes, occasionally | AJ150: =COMPARISON!$AJ$22 -> 1 | AR150: 1
D151: £ | E151: Yes, continuously | AJ151: =COMPARISON!$AJ$22 -> 1 | AR151: 2
C152: VISUAL DEMANDS | AJ152: =COMPARISON!$AJ$22 -> 1 | AR152: 1
AJ153: =COMPARISON!$AJ$22 -> 1 | AR153: 1
C154: Are the visual demands of this work: | AJ154: =COMPARISON!$AJ$22 -> 1 | AR154: 1
D155: £ | E155: Low (almost no need to view fine details) | AJ155: =COMPARISON!$AJ$22 -> 1 | AR155: 1
D156: £ | E156: High (need to view fine details) | AJ156: =COMPARISON!$AJ$22 -> 1 | AR156: 2
AJ157: =COMPARISON!$AJ$22 -> 1 | AR157: 1
A158: NOTES: | AJ158: 1 | AR158: 1
B159: Hand Exertions | AJ159: =COMPARISON!$AJ$25 -> 1 | AK159: =COMPARISON!$AJ$25 -> 1 | AL159: =$AK$159 -> 1 | AM159: =$AK$159 -> 1 | AN159: =$AK$159 -> 1 | AO159: =$AK$159 -> 1 | AP159: =$AK$159 -> 1 | AQ159: 0 | AR159: 1 | AS159: =IF(AK159=1,1,IF(AK159="","",0)) -> 1
B160: Consider the situation with the worst hand exertions (high frequency, high hand force, and/or bad wrist posture): | AJ160: =COMPARISON!$AJ$25 -> 1 | AR160: 1
AJ161: =COMPARISON!$AJ$25 -> 1 | AR161: 1
C162: Describe the activity with the worst hand exertions: | AJ162: =COMPARISON!$AJ$25 -> 1 | AR162: 5
C163: DAILY DURATION | AJ163: =COMPARISON!$AJ$25 -> 1 | AR163: 1
AJ164: =COMPARISON!$AJ$25 -> 1 | AR164: 1
D165: How much time is spent performing the activity described above? (e.g. I spend more than half my day drilling holes through framing members, so: >4-8 hours per day.) | AJ165: =COMPARISON!$AJ$25 -> 1 | AR165: 5
E166: £ | F166: ≤1 hour per day | AJ166: =COMPARISON!$AJ$25 -> 1 | AR166: 1
E167: £ | F167: >1 to 2 hours/day | AJ167: =COMPARISON!$AJ$25 -> 1 | AR167: 1
E168: £ | F168: >2 to 4 hours/day | AJ168: =COMPARISON!$AJ$25 -> 1 | AR168: 1
E169: £ | F169: >4 to <8 hours/day | AJ169: =COMPARISON!$AJ$25 -> 1 | AR169: 1
E170: £ | F170: ≥8 hours per day | AJ170: =COMPARISON!$AJ$25 -> 1 | AR170: 2
C171: SPEED | AJ171: =COMPARISON!$AJ$25 -> 1 | AR171: 1
AJ172: =COMPARISON!$AJ$25 -> 1 | AR172: 1
D173: How would you describe the pace at which the hand exertions are being performed? | AJ173: =COMPARISON!$AJ$25 -> 1 | AR173: 4
E174: £ | F174: Very slow: extremely relaxed | AJ174: =COMPARISON!$AJ$25 -> 1 | AR174: 1
E175: £ | F175: Slow: taking one's own time | AJ175: =COMPARISON!$AJ$25 -> 1 | AR175: 1
E176: £ | F176: Fair: normal speed of motion | AJ176: =COMPARISON!$AJ$25 -> 1 | AR176: 1
E177: £ | F177: Fast: rushed, but able to keep up | AJ177: =COMPARISON!$AJ$25 -> 1 | AR177: 1
E178: £ | F178: Very fast: rushed, and barely able to keep up | AJ178: =COMPARISON!$AJ$25 -> 1 | AR178: 2
C179: FREQUENCY | AJ179: =COMPARISON!$AJ$25 -> 1 | AR179: 1
AJ180: =COMPARISON!$AJ$25 -> 1 | AR180: 1
D181: How often are hand exertions performed in this activity? | AJ181: =COMPARISON!$AJ$25 -> 1 | AR181: 1
E182: £ | F182: <4 per minute | AJ182: =COMPARISON!$AJ$25 -> 1 | AR182: 1
E183: £ | F183: 4-8 per minute | AJ183: =COMPARISON!$AJ$25 -> 1 | AR183: 1
E184: £ | F184: 9-14 per minute | AJ184: =COMPARISON!$AJ$25 -> 1 | AR184: 1
E185: £ | F185: 15-19 per minute | AJ185: =COMPARISON!$AJ$25 -> 1 | AR185: 1
E186: £ | F186: ≥20 per minute | AJ186: =COMPARISON!$AJ$25 -> 1 | AR186: 2
AJ187: =COMPARISON!$AJ$25 -> 1 | AR187: 1
A188: NOTES: | AH188: HAND EXERTIONS CONTINUED ON NEXT PAGE " | AJ188: =COMPARISON!$AJ$25 -> 1 | AR188: 1
B189: Hand Exertions | AJ189: =COMPARISON!$AJ$25 -> 1 | AK189: =COMPARISON!$AJ$25 -> 1 | AL189: =$AK$189 -> 1 | AM189: =$AK$189 -> 1 | AN189: =$AK$189 -> 1 | AO189: =$AK$189 -> 1 | AP189: =$AK$189 -> 1 | AQ189: 0 | AR189: 1 | AS189: 1
B190: HAND EXERTIONS (CONT.) | AJ190: =COMPARISON!$AJ$25 -> 1 | AR190: 1
AJ191: =COMPARISON!$AJ$25 -> 1 | AR191: 1
C192: DURATION OF EXERTION | AJ192: =COMPARISON!$AJ$25 -> 1 | AR192: 9
AJ193: =COMPARISON!$AJ$25 -> 1 | AR193: 9
D194: What percentage of time are the hand exertions applied during this activity or a representative observation period? (i.e. Duration of all exertions ÷ Total observation time x 100) | AJ194: =COMPARISON!$AJ$25 -> 1 | AR194: 6
E195: £ | F195: Less than 10% of the time | AJ195: =COMPARISON!$AJ$25 -> 1 | AR195: 1
E196: £ | F196: 10-29% of the time | AJ196: =COMPARISON!$AJ$25 -> 1 | AR196: 1
E197: £ | F197: 30-49% of the time | AJ197: =COMPARISON!$AJ$25 -> 1 | AR197: 1
E198: £ | F198: 50-79% of the time | AJ198: =COMPARISON!$AJ$25 -> 1 | AR198: 1
E199: £ | F199: At least 80% of the time | AJ199: =COMPARISON!$AJ$25 -> 1 | AR199: 2
C200: FORCE | AJ200: =COMPARISON!$AJ$25 -> 1 | AR200: 1
... 433 more rows

Sheet COMPARISON (hidden)
A1: Index | B1: Row | C1: =Home!AW2 -> 0 | D1: Frame | E1: WkSht | F1: FORMS Rows | G1: F rows | H1: F | I1: P | J1: R.2 | K1: R | L1: Datasheet Row | M1: D# | N1: =COUNTA(#REF!,$N$60,$N$54,$N$50,$N$45,$N$41,$N$36,$N$25,$N$29,$N$11,$N$16,$N$7,$N$2,$N$39) -> 14 | O1: =COUNTA(#REF!,$O$60,$O$54,$O$50,$O$45,$O$41,$O$36,$O$25,$O$29,$O$11,$O$16,$O$7,$O$2,$O$39) -> 14 | P1: =COUNTA(#REF!,$P$60,$P$54,$P$50,$P$45,$P$41,$P$36,$P$25,$P$29,$P$11,$P$16,$P$7,$P$2,$P$39) -> 14 | Q1: =COUNTA(#REF!,$Q$60,$Q$54,$Q$50,$Q$45,$Q$41,$Q$36,$Q$25,$Q$29,$Q$11,$Q$16,$Q$7,$Q$2,$Q$39) -> 14 | R1: =COUNTA(#REF!,$R$60,$R$54,$R$50,$R$45,$R$41,$R$36,$R$25,$R$29,$R$11,$R$16,$R$7,$R$2,$R$39) -> 14 | S1: =COUNTA(#REF!,$S$60,$S$54,$S$50,$S$45,$S$41,$S$36,$S$25,$S$29,$S$11,$S$16,$S$7,$S$2,$S$39) -> 14 | T1: BAR | X1: #PGS | Y1: NOW | Z1: 3 | AB1: =COUNTA(#REF!,$N$60,$N$54,$N$50,$N$45,$N$41,$N$36,$N$25,$N$29,$N$11,$N$16,$N$7,$N$2,$N$39) -> 14 | AC1: =COUNTA(#REF!,$O$60,$O$54,$O$50,$O$45,$O$41,$O$36,$O$25,$O$29,$O$11,$O$16,$O$7,$O$2,$O$39) -> 14 | AD1: =COUNTA(#REF!,$P$60,$P$54,$P$50,$P$45,$P$41,$P$36,$P$25,$P$29,$P$11,$P$16,$P$7,$P$2,$P$39) -> 14 | AE1: =COUNTA(#REF!,$Q$60,$Q$54,$Q$50,$Q$45,$Q$41,$Q$36,$Q$25,$Q$29,$Q$11,$Q$16,$Q$7,$Q$2,$Q$39) -> 14 | AF1: =COUNTA(#REF!,$R$60,$R$54,$R$50,$R$45,$R$41,$R$36,$R$25,$R$29,$R$11,$R$16,$R$7,$R$2,$R$39) -> 14 | AG1: =COUNTA(#REF!,$S$60,$S$54,$S$50,$S$45,$S$41,$S$36,$S$25,$S$29,$S$11,$S$16,$S$7,$S$2,$S$39) -> 14 | AI1: row | AJ1: ON/OFF | AK1: Frame | AL1: Condition | AM1: Value | AN1: PageIndex | AO1: Object
A2: 1 | B2: =ROW(C2) -> 2 | C2: =Forms!B1 -> Job Basics | D2: 1 | E2: F01 | F2: 1 | H2: 1 | K2: 1 | N2: 1 | O2: 1 | P2: 1 | Q2: 1 | R2: 1 | S2: 1 | T2: =A2/$N$65 -> 0.07142857143 | U2: =A2/$O$65 -> 0.07142857143 | V2: =A2/$P$65 -> 0.07142857143 | W2: =A2/$Q$65 -> 0.07142857143 | X2: 1 | Y2: =INDEX($N$1:$S$64,B2,$Z$1) -> 1 | Z2: =ABS(Y2) -> 1 | AA2: =IF(X2=1,X2*Y2,IF(X2=2,Y2)) -> 1 | AC2: 1 | AI2: =ROW(C1) -> 1 | AJ2: =IF($C$1=0,1,IF(N2>=1,1,"o")) -> 1
C3: QEC_H max weight | F3: 14-20 | N3: 1 | O3: 1 | P3: 1 | Q3: 1 | R3: 1 | S3: 1 | AI3: =ROW(C2) -> 2 | AJ3: =IF($C$1=0,1,(INDEX($N$2:$S$64,AI3,$C$1))) -> 1
A4: Page1 | C4: QEC_pace_L | F4: 19-31 | K4: 3 | N4: 1 | O4: 1 | P4: 1 | Q4: 1 | R4: 1 | S4: 1 | AA4: =CHAR(AA23) ->  | AI4: 3 | AJ4: =IF($C$1=0,1,(INDEX($N$2:$S$64,AI4,$C$1))) -> 1
C5: QEC_stress_L | F5: 19-31 | K5: 3 | N5: 1 | O5: 1 | P5: 1 | Q5: 1 | R5: 1 | S5: 1 | AI5: 4 | AJ5: =IF($C$1=0,1,(INDEX($N$2:$S$64,AI5,$C$1))) -> 1
C6: Notes | F6: 32-33 | G6: 32-33 | K6: 4 | N6: 1 | O6: 1 | P6: 1 | Q6: 1 | R6: 1 | S6: 1 | AI6: 5 | AJ6: =IF($C$1=0,1,(INDEX($N$2:$S$64,AI6,$C$1))) -> 1
A7: 2 | B7: =ROW(C7) -> 7 | C7: =Forms!B39 -> Back | D7: 8 | E7: F02 | F7: 34 | H7: 2 | K7: 5 | N7: 1 | O7: 1 | P7: 1 | Q7: 1 | R7: 1 | S7: 1 | T7: 1 | U7: 1 | V7: 1 | W7: 1 | X7: 1 | Y7: 1 | Z7: 1 | AA7: 1 | AB7: 1 | AC7: 1 | AD7: 1 | AE7: 1 | AF7: 1 | AG7: 1 | AH7: 1 | AI7: 6 | AJ7: =IF($C$1=0,1,IF(N7>=1,1,"o")) -> 1
A8: Page8 | C8: QEC_backS_L | F8: 35-58 | K8: 5 | N8: 1 | O8: 1 | P8: 1 | Q8: 1 | R8: 1 | S8: 1 | T8: 2 | U8: 2 | V8: 2 | W8: 2 | AA8: =IF(X7=2,AA7+1,"") ->  | AI8: 7 | AJ8: =IF($C$1=0,1,(INDEX($N$2:$S$64,AI8,$C$1))) -> 1
C9: QEC_backD_L | F9: 35-58 | K9: 5 | N9: 1 | O9: 1 | P9: 1 | Q9: 1 | R9: 1 | S9: 1 | AI9: 8 | AJ9: =IF($C$1=0,1,(INDEX($N$2:$S$64,AI9,$C$1))) -> 1
C10: notes | N10: 1 | O10: o | P10: o | Q10: o | R10: o | S10: o | AI10: 9 | AJ10: =IF($C$1=0,1,(INDEX($N$2:$S$64,AI10,$C$1))) -> 1
A11: 3 | B11: =ROW(C11) -> 11 | C11: Work Postures | D11: 11 | E11: F04 | F11: 98 | H11: 4 | J11: =E11 -> F04 | K11: 9 | N11: o | O11: 1 | P11: 1 | Q11: 1 | R11: 1 | S11: 1 | U11: =A11/$O$65 -> 0.2142857143 | V11: =A11/$P$65 -> 0.2142857143 | W11: =A11/$Q$65 -> 0.2142857143 | X11: 1 | Y11: =INDEX($N$1:$S$64,B11,$Z$1) -> 1 | Z11: =ABS(Y11) -> 1 | AA11: =IF(AA17>AA16,AA17+1,AA16+1) ->  | AC11: 4 | AH11: 11 | AI11: 10 | AJ11: =IF($C$1=0,1,IF($C$1=1,"o",1)) -> 1
A12: Page11 | C12: Sitting_L | E12: -- | F12: 99-110 | K12: 43 | N12: o | O12: o | P12: o | Q12: o | R12: o | S12: o | U12: 4 | V12: 4 | W12: 4 | AA12: =IF(X11=2,AA11+1,"") ->  | AI12: 11 | AJ12: =IF($C$1=0,1,(INDEX($N$2:$S$64,AI12,$C$1))) -> 1
C13: Standing_L | E13: -- | F13: 99-110 | K13: 43 | N13: o | O13: o | P13: o | Q13: o | R13: o | S13: o | AI13: 12 | AJ13: =IF($C$1=0,1,(INDEX($N$2:$S$64,AI13,$C$1))) -> 1
C14: WA_knee_L | D14: 6, 10 | E14: 14-25 | F14: 111-122 | G14: 14-25 | I14: 7 | J14: a | K14: 10 | L14: 59, 60 | M14: 2 | N14: o | O14: 1 | P14: 1 | Q14: 1 | R14: 1 | S14: 1 | AI14: 13 | AJ14: =IF($C$1=0,1,(INDEX($N$2:$S$64,AI14,$C$1))) -> 1
C15: Notes | F15: 123-124 | K15: 11 | N15: o | O15: 1 | P15: 1 | Q15: 1 | R15: 1 | S15: 1 | AI15: 14 | AJ15: =IF($C$1=0,1,(INDEX($N$2:$S$64,AI15,$C$1))) -> 1
A16: 4 | B16: =ROW(C16) -> 16 | C16: =Forms!B95 -> Shoulder | D16: 14 | E16: F03 | F16: 59 | H16: 3 | J16: =E16 -> F03 | K16: 5 | N16: 1 | O16: 1 | P16: 1 | Q16: 1 | R16: 1 | S16: 1 | T16: =A16/$N$65 -> 0.2857142857 | U16: =A16/$O$65 -> 0.2857142857 | V16: =A16/$P$65 -> 0.2857142857 | W16: =A16/$Q$65 -> 0.2857142857 | X16: 1 | Y16: =INDEX($N$1:$S$64,B16,$Z$1) -> 1 | Z16: =ABS(Y16) -> 1 | AA16: =IF(AA8>AA7,AA8+1,AA7+1) ->  | AC16: 3 | AI16: 15 | AJ16: =IF($C$1=0,1,IF(N16>=1,1,"o")) -> 1
A17: Page14 | C17: QEC_ShldArm_L | D17: 75 | F17: 60-71 | G17: ="2-7" -> 2-7 | K17: 5 | N17: 1 | O17: 1 | P17: 1 | Q17: 1 | R17: 1 | S17: 1 | T17: 3 | U17: 3 | V17: 3 | AA17: =IF(X16=2,AA16+1,"") ->  | AI17: 16 | AJ17: =IF($C$1=0,1,(INDEX($N$2:$S$64,AI17,$C$1))) -> 1 | AK17: 75 | AL17: left | AM17: =IF($C$1=1,72,204) -> 204 | AN17: 3 | AO17: Frame
B18: SDHR | C18: WA_hands_above_L | D18: 79 | E18: ="8-19" -> 8-19 | F18: 443-454 | G18: ="2-12" -> 2-12 | I18: 21 | J18: b | K18: 33 | L18: 107 | M18: 16 | N18: 1 | O18: o | P18: o | Q18: o | R18: o | S18: o | T18: 11 | U18: 13 | AI18: 17 | AJ18: =IF($C$1=0,1,(INDEX($N$2:$S$64,AI18,$C$1))) -> 1 | AK18: 79 | AL18: visible | AM18: =IF(AJ18=1,"True","False") -> True | AN18: 3 | AO18: Frame
C19: Notes | E19: 45-46 | F19: 96-97 | G19: 42-42 | J19: d | K19: 8 | N19: 1 | O19: o | P19: o | Q19: o | R19: 1 | S19: 1 | AI19: 18 | AJ19: =IF($C$1=0,1,(INDEX($N$2:$S$64,AI19,$C$1))) -> 1
A20: 5 | B20: =ROW(C20) -> 20 | C20: Neck | D20: 14 | E20: F03 | F20: 59 | H20: 3 | J20: =E20 -> F03 | K20: 5 | N20: 1 | O20: 1 | P20: 1 | Q20: 1 | R20: 1 | S20: 1 | T20: =A20/$N$65 -> 0.3571428571 | U20: =A20/$O$65 -> 0.3571428571 | V20: =A20/$P$65 -> 0.3571428571 | W20: =A20/$Q$65 -> 0.3571428571 | X20: 1 | Y20: =INDEX($N$1:$S$64,B20,$Z$1) -> 1 | Z20: =ABS(Y20) -> 1 | AA20: =IF(AA22>AA21,AA22+1,AA21+1) -> 1 | AC20: 3 | AI20: 19 | AJ20: =IF($C$1=0,1,IF(N20>=1,1,"o")) -> 1
A21: Page17 | C21: WA_neck_L | D21: 2 | E21: 16-33 | F21: 72-89 | G21: 14-34 | I21: 4 | J21: a | K21: 6 | L21: 56 | M21: 24 | N21: o | O21: 1 | P21: 1 | Q21: o | R21: o | S21: o | AI21: 20 | AJ21: =IF($C$1=0,1,(INDEX($N$2:$S$64,AI21,$C$1))) -> 1 | AK21: 2 | AL21: visible | AM21: =IF(AJ21=1,"True","False") -> True | AN21: 4 | AO21: Frame
C22: QEC_Neck_L | D22: 76 | E22: 34-39 | F22: 90-95 | G22: 35-40 | I22: 5 | J22: b | K22: 7 | N22: 1 | O22: o | P22: o | Q22: 1 | R22: 1 | S22: 1 | AI22: 21 | AJ22: =IF($C$1=0,1,(INDEX($N$2:$S$64,AI22,$C$1))) -> 1 | AK22: 92 | AL22: visible | AM22: =IF(AJ22=1,"True","False") -> True | AN22: 4 | AO22: Frame
C23: Visual Demand | D23: 78 | E23: 40-44 | F23: 14-18 | G23: 14-18 | I23: 2 | J23: c | K23: 2 | L23: 50 | M23: 1 | N23: 1 | O23: o | P23: o | Q23: 1 | R23: 1 | S23: 1 | T23: 1 | U23: 1 | V23: 1 | W23: 1 | AA23: =IF(X2=2,AA2+1,"") ->  | AI23: 22 | AJ23: =IF($C$1=0,1,(INDEX($N$2:$S$64,AI23,$C$1))) -> 1
C24: Notes | E24: 45-46 | F24: 96-97 | G24: 42-42 | J24: d | K24: 8 | N24: 1 | O24: 1 | P24: 1 | Q24: 1 | R24: 1 | S24: 1 | AI24: 23 | AJ24: =IF($C$1=0,1,(INDEX($N$2:$S$64,AI24,$C$1))) -> 1
A25: 6 | B25: =ROW(C25) -> 25 | C25: Hand Exertions | D25: 7 | E25: F05 | F25: 125, 154 | H25: 6 | J25: F05 | K25: 12 | L25: 61-66 | N25: 1 | O25: 1 | P25: 1 | Q25: 1 | R25: 1 | S25: o | T25: =(A25-1)/$N$65 -> 0.3571428571 | U25: =A25/$O$65 -> 0.4285714286 | V25: =A25/$P$65 -> 0.4285714286 | W25: =A25/$Q$65 -> 0.4285714286 | X25: 2 | Y25: =INDEX($N$1:$S$64,B25,$Z$1) -> 1 | Z25: =ABS(Y25) -> 1 | AA25: =IF(AA12>AA11,AA12+1,AA11+1) ->  | AC25: 5 | AH25: 7 | AI25: 24 | AJ25: =IF($C$1=0,1,IF($C$1=6,"o",1)) -> 1
A26: Page7 | C26: Strain Index1 | F26: 125-153 | K26: 12 | N26: 1 | O26: 1 | P26: 1 | Q26: 1 | R26: 1 | S26: o | T26: 4 | U26: 5 | V26: 5 | AA26: =IF(X25=2,AA25+1,"") ->  | AC26: 6 | AI26: 25 | AJ26: =IF($C$1=0,1,(INDEX($N$2:$S$64,AI26,$C$1))) -> 1
C27: Strain Index2 | F27: 154-180 | K27: 12 | N27: 1 | O27: 1 | P27: 1 | Q27: 1 | R27: 1 | S27: o | AI27: 26 | AJ27: =IF($C$1=0,1,(INDEX($N$2:$S$64,AI27,$C$1))) -> 1 | AK27: 101 | AL27: height | AM27: =IF(Home!AQ62=0,126,354) -> 354 | AN27: 7 | AO27: Frame | AP27: Highly repetitive motions
C28: NOtes2 | F28: 181-182 | N28: 1 | O28: 1 | P28: 1 | Q28: 1 | R28: 1 | S28: o | AI28: 27 | AJ28: =IF($C$1=0,1,(INDEX($N$2:$S$64,AI28,$C$1))) -> 1 | AK28: 101 | AL28: visible | AM28: =IF(AJ31=1,"True","False") -> True | AN28: 7 | AO28: Frame | AP28: Highly repetitive motions
A29: 7 | B29: =ROW(C29) -> 29 | C29: Repetition - Hand | D29: 16 | E29: F06 | F29: 183 | H29: 5 | I29: 9 | J29: =E29 -> F06 | K29: 13 | N29: 1 | O29: 1 | P29: 1 | Q29: 1 | R29: 1 | S29: 1 | T29: =(A29-1)/$N$65 -> 0.4285714286 | U29: =A29/$O$65 -> 0.5 | V29: =A29/$P$65 -> 0.5 | W29: =A29/$Q$65 -> 0.5 | X29: 1 | Y29: =INDEX($N$1:$S$64,B29,$Z$1) -> 1 | Z29: =ABS(Y29) -> 1 | AA29: =IF(AA26>AA25,AA26+1,AA25+1) ->  | AC29: 7 | AI29: 28 | AJ29: =IF($C$1=0,1,IF(N29>=1,1,"o")) -> 1 | AK29: 43 | AL29: left | AM29: =IF(OR($C$1=2,$C$1=6),342,188) -> 188 | AN29: 7 | AO29: Frame | AP29: INTENSIVE TYPING
A30: =SUM(AJ30:AJ33) -> 4 | C30: WA_computer_L | E30: ="11-38" -> 11-38 | F30: 193-217 | J30: c | K30: 15 | L30: 70-72 | N30: 1 | O30: 1 | P30: 1 | Q30: 1 | R30: 1 | S30: 1 | AI30: =ROW(C35) -> 35 | AJ30: =IF($C$1=0,1,(INDEX($N$2:$S$64,AI30,$C$1))) -> 1 | AK30: 43 | AL30: visible | AM30: =IF(AJ30=1,"True","False") -> True | AN30: 7 | AO30: Frame | AP30: INTENSIVE TYPING
A31: Page16 | C31: WA_Rep_L | D31: 94 | E31: 36-50 | J31: d | L31: ?? | N31: o | O31: o | P31: o | Q31: o | R31: o | S31: 1 | AI31: 30 | AJ31: 1 | AK31: 43 | AL31: height | AM31: 108 | AN31: 7 | AO31: Frame | AP31: INTENSIVE TYPING
C32: WA_impact (sawmill) | D32: 13 | E32: 20-28 | F32: 455-463 | G32: 13-22 | I32: 22 | J32: c | K32: 34 | L32: 108 | M32: 17 | N32: o | O32: 1 | P32: o | Q32: o | R32: o | S32: o | AI32: 31 | AJ32: 1 | AK32: 13 | AL32: visible | AM32: =IF(AJ32=1,"True","False") -> True | AN32: 7 | AO32: Frame | AP32: Forceful hand impacts (MFG)
C33: Notes | E33: 51-52 | F33: 218-219 | J33: b | K33: 16 | N33: 1 | O33: 1 | P33: 1 | Q33: 1 | R33: 1 | S33: 1 | AI33: 32 | AJ33: 1 | AK33: 13 | AL33: height | AM33: 108 | AN33: 7 | AO33: Frame | AP33: Forceful hand impacts (MFG)
A34: 8 | C34: Reptition - Foot | N34: o | O34: 1 | P34: 1 | Q34: 1 | R34: o | S34: 1 | AI34: 33 | AJ34: =IF($C$1=0,1,(INDEX($N$2:$S$64,AI34,$C$1))) -> 1
C35: Foot_control | D35: 74 | E35: ="2-10" -> 2-10 | F35: 184-192 | J35: a | K35: 14 | L35: 69 | M35: 3 | N35: o | O35: 1 | P35: 1 | Q35: 1 | R35: o | S35: 1 | T35: 5 | U35: 6 | V35: 6 | W35: 6 | AA35: =IF(X29=2,AA29+1,"") ->  | AI35: 34 | AJ35: 1 | AK35: 22 | AL35: visible | AM35: =IF(AJ35=1,"True","False") -> True | AN35: 8 | AO35: Frame | AP35: Foot controls
A36: 9 | B36: =ROW(C36) -> 36 | C36: Gripping | D36: 15 | E36: F07 | F36: 220 | H36: 7 | J36: =E36 -> F07 | K36: 17 | N36: 1 | O36: 1 | P36: 1 | Q36: 1 | R36: 1 | S36: 1 | T36: =(A36-1)/$N$65 -> 0.5714285714 | U36: =A36/$O$65 -> 0.6428571429 | V36: =A36/$P$65 -> 0.6428571429 | W36: =A36/$Q$65 -> 0.6428571429 | X36: 1 | Y36: =INDEX($N$1:$S$64,B36,$Z$1) -> 1 | Z36: =ABS(Y36) -> 1 | AC36: 8 | AI36: 35 | AJ36: =IF($C$1=0,1,IF(N36>=1,1,"o")) -> 1
A37: Page15 | C37: WA_pinch_L | D37: 54 | F37: 221-236 | K37: 18 | N37: 1 | O37: 1 | P37: 1 | Q37: 1 | R37: 1 | S37: 1 | T37: 6 | U37: 7 | V37: 7 | W37: 7 | AI37: 36 | AJ37: =IF($C$1=0,1,(INDEX($N$2:$S$64,AI37,$C$1))) -> 1 | AK37: 54 | AL37: left | AM37: =IF(C1=1,204,0) -> 0 | AN37: 9 | AO37: Frame | AP37: PINCH GRIP
C38: WA_grip_L (power) | D38: 55 | E38: 19-37 | F38: 237-253 | G38: 19-34 | I38: 11 | J38: a | K38: 19 | L38: 75, 76 | M38: 4 | N38: o | O38: 1 | P38: 1 | Q38: 1 | R38: 1 | S38: 1 | AI38: 37 | AJ38: =IF($C$1=0,1,(INDEX($N$2:$S$64,AI38,$C$1))) -> 1 | AK38: 55 | AL38: visible | AM38: =IF(AJ38=1,"True","False") -> True | AN38: 9 | AO38: Frame | AP38: POWER GRIP
A39: 10 | B39: =ROW(C39) -> 39 | C39: Lifting | E39: F08 | J39: =E39 -> F08 | N39: o | O39: o | P39: o | Q39: 1 | R39: 1 | S39: 1 | X39: 1 | Y39: =INDEX($N$1:$S$64,B39,$Z$1) -> o | Z39: =ABS(Y39) ->  | AH39: 18 | AI39: 38 | AJ39: =IF($C$1=0,1,IF($C$1>3,1,"o")) -> 1 | AK39: 7 | AL39: visible | AM39: =IF(C1<4,"True","False") -> True | AN39: 11 | AO39: Image | AP39: HAND LOCATION
A40: Page18 | C40: WA Screeners | E40: ="1-22" -> 1-22 | J40: a | N40: o | O40: o | P40: o | Q40: 1 | R40: 1 | S40: 1 | AI40: 39 | AJ40: =IF($C$1=0,1,(INDEX($N$2:$S$64,AI40,$C$1))) -> 1 | AK40: 66 | AL40: visible | AM40: =IF(C1<4,"False","True") -> False | AN40: 11 | AO40: Image | AP40: HAND LOCATION
A41: 11 | B41: =ROW(C41) -> 41 | C41: Lifting | D41: 6 | F41: 256 | H41: 8 | K41: 21 | N41: 1 | O41: 1 | P41: 1 | Q41: 1 | R41: 1 | S41: 1 | T41: =IF(OR($Z$1=1,$Z$1=2,$Z$1=3),T36+1,IF(Home!$AQ$21>0,COUNTA(T39,T36,T29,T25,T11,T16,T7,T2)+1,IF(Home!$AQ$21=0,""))) -> 1.571428571 | U41: =IF(OR($Z$1=1,$Z$1=2,$Z$1=3),U36+1,IF(Home!$AQ$21>0,COUNTA(U39,U36,U29,U25,U11,U16,U7,U2)+1,IF(Home!$AQ$21=0,""))) -> 1.642857143 | V41: =IF(OR($Z$1=1,$Z$1=2,$Z$1=3),V36+1,IF(Home!$AQ$21>0,COUNTA(V39,V36,V29,V25,V11,V16,V7,V2)+1,IF(Home!$AQ$21=0,""))) -> 1.642857143 | W41: =IF(OR($Z$1=1,$Z$1=2,$Z$1=3),W36+1,IF(Home!$AQ$21>0,COUNTA(W39,W36,W29,W25,W11,W16,W7,W2)+1,IF(Home!$AQ$21=0,""))) -> 1.642857143 | X41: =IF(OR($Z$1=1,$Z$1=2,$Z$1=3),X36+1,IF(Home!$AQ$21>0,COUNTA(X39,X36,X29,X25,X11,X16,X7,X2)+1,IF(Home!$AQ$21=0,""))) -> 2 | Y41: =IF(OR($Z$1=1,$Z$1=2,$Z$1=3),Y36+1,IF(Home!$AQ$21>0,COUNTA(Y39,Y36,Y29,Y25,Y11,Y16,Y7,Y2)+1,IF(Home!$AQ$21=0,""))) -> 2 | Z41: =IF(OR($Z$1=1,$Z$1=2,$Z$1=3),Z36+1,IF(Home!$AQ$21>0,COUNTA(Z39,Z36,Z29,Z25,Z11,Z16,Z7,Z2)+1,IF(Home!$AQ$21=0,""))) -> 2 | AA41: =IF(OR($Z$1=1,$Z$1=2,$Z$1=3),AA36+1,IF(Home!$AQ$21>0,COUNTA(AA39,AA36,AA29,AA25,AA11,AA16,AA7,AA2)+1,IF(Home!$AQ$21=0,""))) -> 1 | AB41: =IF(OR($Z$1=1,$Z$1=2,$Z$1=3),AB36+1,IF(Home!$AQ$21>0,COUNTA(AB39,AB36,AB29,AB25,AB11,AB16,AB7,AB2)+1,IF(Home!$AQ$21=0,""))) -> 1 | AC41: =IF(OR($Z$1=1,$Z$1=2,$Z$1=3),AC36+1,IF(Home!$AQ$21>0,COUNTA(AC39,AC36,AC29,AC25,AC11,AC16,AC7,AC2)+1,IF(Home!$AQ$21=0,""))) -> 9 | AD41: =IF(OR($Z$1=1,$Z$1=2,$Z$1=3),AD36+1,IF(Home!$AQ$21>0,COUNTA(AD39,AD36,AD29,AD25,AD11,AD16,AD7,AD2)+1,IF(Home!$AQ$21=0,""))) -> 1 | AE41: =IF(OR($Z$1=1,$Z$1=2,$Z$1=3),AE36+1,IF(Home!$AQ$21>0,COUNTA(AE39,AE36,AE29,AE25,AE11,AE16,AE7,AE2)+1,IF(Home!$AQ$21=0,""))) -> 1 | AF41: =IF(OR($Z$1=1,$Z$1=2,$Z$1=3),AF36+1,IF(Home!$AQ$21>0,COUNTA(AF39,AF36,AF29,AF25,AF11,AF16,AF7,AF2)+1,IF(Home!$AQ$21=0,""))) -> 1 | AG41: =IF(OR($Z$1=1,$Z$1=2,$Z$1=3),AG36+1,IF(Home!$AQ$21>0,COUNTA(AG39,AG36,AG29,AG25,AG11,AG16,AG7,AG2)+1,IF(Home!$AQ$21=0,""))) -> 1 | AH41: 6 | AI41: 40 | AJ41: =IF($C$1=0,1,IF(N41>=1,1,"o")) -> 1 | AK41: 57 | AL41: caption | AM41: =IF(C1<4,"On average, lifts are performed once every:","On average, how many lifts are performed per minute?") -> On average, lifts are performed once every: | AN41: 11 | AO41: Label | AP41: LIFTING FREQUENCY
A42: Page6 | C42: TLV_Lifting_L | F42: 257-291 | K42: 21 | N42: 1 | O42: 1 | P42: 1 | Q42: o | R42: o | S42: o | T42: 7 | U42: 8 | V42: 8 | W42: 8 | AI42: 41 | AJ42: =IF($C$1=0,1,(INDEX($N$2:$S$64,AI42,$C$1))) -> 1 | AK42: 28 | AL42: top | AM42: =IF(C1<4,174,270) -> 174 | AN42: 11 | AO42: Frame | AP42: LIFTING FREQUENCY
C43: WA_lifting_L | F43: 257-291 | N43: o | O43: o | P43: o | Q43: 1 | R43: 1 | S43: 1 | AI43: 42 | AJ43: =IF($C$1=0,1,(INDEX($N$2:$S$64,AI43,$C$1))) -> 1 | AK43: 60 | AL43: caption | AM43: =IF(C1<4,"2 hours or less","1 hour or less") -> 2 hours or less | AN43: 11 | AO43: CheckBox | AP43: LIFTING DURATION, 1
C44: NOTES | N44: o | O44: o | P44: o | Q44: 1 | R44: 1 | S44: 1 | AI44: 43 | AJ44: =IF($C$1=0,1,(INDEX($N$2:$S$64,AI44,$C$1))) -> 1
A45: 12 | B45: =ROW(C45) -> 45 | C45: Carrying | D45: 12 | E45: F09 | F45: 292 | K45: 22 | N45: 1 | O45: 1 | P45: 1 | Q45: 1 | R45: 1 | S45: 1 | T45: =IF(T41<>"",T36+COUNTA(T39,T41)+1,T39+COUNTA(T39)) -> 2.571428571 | U45: 2.642857143 | V45: 2.642857143 | W45: 2.642857143 | X45: 4 | Y45: 4 | Z45: 4 | AA45: 2 | AB45: 2 | AC45: 10 | AD45: 2 | AE45: 2 | AF45: 2 | AG45: 2 | AI45: 44 | AJ45: =IF($C$1=0,1,IF(N45>=1,1,"o")) -> 1 | AK45: 61 | AL45: caption | AM45: =IF(C1<4,"More than 2 hours","1 to 2 hours") -> More than 2 hours | AN45: 11 | AO45: CheckBox
A46: Page12 | C46: Carry_L1 | F46: 293-322 | N46: 1 | O46: o | P46: o | Q46: o | R46: o | S46: o | T46: 8 | U46: 9 | V46: 9 | W46: 9 | AI46: 45 | AJ46: =IF($C$1=0,1,(INDEX($N$2:$S$64,AI46,$C$1))) -> 1 | AK46: 62 | AL46: caption | AM46: =IF(C1<4,"Close: <12 inches","Close: <7 inches") -> Close: <12 inches | AN46: 11 | AO46: CheckBox
C47: Carry_L2 | F47: 293-322 | N47: o | O47: 1 | P47: 1 | Q47: 1 | R47: 1 | S47: 1 | AI47: 46 | AJ47: =IF($C$1=0,1,(INDEX($N$2:$S$64,AI47,$C$1))) -> 1 | AK47: 63 | AL47: caption | AM47: =IF(C1<4,"Intermediate: 12-24 inches","Intermediate: 7-12 inches") -> Intermediate: 12-24 inches | AN47: 11 | AO47: CheckBox
C48: Carry_L3 | F48: 293-322 | N48: o | O48: o | P48: o | Q48: o | R48: o | S48: o | AI48: 47 | AJ48: =IF($C$1=0,1,(INDEX($N$2:$S$64,AI48,$C$1))) -> 1 | AK48: 64 | AL48: caption | AM48: =IF(C1<4,"Extended: 25-32 inches","Extended: >12 inches") -> Extended: 25-32 inches | AN48: 11 | AO48: CheckBox
C49: Notes | F49: 323-324 | N49: 1 | O49: 1 | P49: 1 | Q49: 1 | R49: 1 | S49: 1 | AI49: 48 | AJ49: =IF($C$1=0,1,(INDEX($N$2:$S$64,AI49,$C$1))) -> 1 | AK49: 69 | AL49: caption | AM49: =IF(C1<4,"3 in. below shoulder and above","Above shoulder") -> 3 in. below shoulder and above | AN49: 11 | AO49: CheckBox
A50: 13 | B50: =ROW(C50) -> 50 | C50: Pushing/Pulling | D50: 3 | E50: F10 | F50: 325, 347 | K50: 23 | N50: 1 | O50: 1 | P50: 1 | Q50: 1 | R50: 1 | S50: 1 | T50: =(A50-1)/$N$65 -> 0.8571428571 | U50: =A50/$O$65 -> 0.9285714286 | V50: =A50/$P$65 -> 0.9285714286 | W50: =A50/$Q$65 -> 0.9285714286 | X50: 2 | Y50: =INDEX($N$1:$S$64,B50,$Z$1) -> 1 | Z50: =ABS(Y50) -> 1 | AC50: 11 | AI50: 49 | AJ50: =IF($C$1=0,1,IF(N50>=1,1,"o")) -> 1 | AK50: 70 | AL50: caption | AM50: =IF(C1<4,"Knuckle to 3 in. below shoulder","Waist to shoulder") -> Knuckle to 3 in. below shoulder | AN50: 11 | AO50: CheckBox
C51: Push/Pull_overall1 | F51: 326-346, 347-376 | N51: o | O51: o | P51: o | Q51: o | R51: o | S51: o | T51: 9 | U51: 10 | V51: 10 | W51: 10 | AC51: 12 | AI51: 50 | AJ51: =IF($C$1=0,1,(INDEX($N$2:$S$64,AI51,$C$1))) -> 1 | AK51: 71 | AL51: caption | AM51: =IF(C1<4,"Mid-shin to knuckle","Knee to waist") -> Mid-shin to knuckle | AN51: 11 | AO51: CheckBox
A52: Page3 | C52: Push/Pull_overall2 | F52: 326-346, 348-376 | K52: 23 | N52: 1 | O52: 1 | P52: 1 | Q52: 1 | R52: 1 | S52: 1 | AI52: 51 | AJ52: =IF($C$1=0,1,(INDEX($N$2:$S$64,AI52,$C$1))) -> 1 | AK52: 72 | AL52: caption | AM52: =IF(C1<4,"Below mid-shin","Below knee") -> Below mid-shin | AN52: 11 | AO52: CheckBox
C53: Push/Pull_overall3 | F53: 326-346, 348-376 | K53: 23 | N53: o | O53: o | P53: o | Q53: o | R53: o | S53: o | AI53: 52 | AJ53: =IF($C$1=0,1,(INDEX($N$2:$S$64,AI53,$C$1))) -> 1 | AK53: 112 | AL53: visible | AM53: =IF(C1<4,"False","True") -> False | AN53: 11 | AO53: CheckBox
A54: 14 | B54: =ROW(C54) -> 54 | C54: Hand/Arm Vibration | D54: 9 | E54: F11 | F54: 377 | H54: 9 | J54: =E54 -> F11 | K54: 24 | N54: 1 | O54: 1 | P54: 1 | Q54: 1 | R54: 1 | S54: 1 | U54: =A54/$O$65 -> 1 | V54: =A54/$P$65 -> 1 | W54: =A54/$Q$65 -> 1 | X54: 1 | Y54: =INDEX($N$1:$S$64,B54,$Z$1) -> 1 | Z54: =ABS(Y54) -> 1 | AC54: 13 | AH54: 9 | AI54: 53 | AJ54: 1 | AK54: 87 | AL54: visible | AM54: =IF($C$1<4,"False","True") -> False | AN54: 11 | AO54: Frame
A55: Page9 | C55: QEC-vibration_L | D55: 29 | E55: ="2-7" -> 2-7 | F55: 378-383 | G55: ="2-7" -> 2-7 | I55: 13 | J55: a | K55: 25 | L55: 94 | M55: 5 | N55: 1 | O55: 1 | P55: o | Q55: o | R55: 1 | S55: 1 | U55: 11 | V55: 11 | W55: 11 | AI55: 54 | AJ55: =IF($C$1=0,1,(INDEX($N$2:$S$64,AI55,$C$1))) -> 1 | AK55: 29 | AL55: visible | AM55: =IF(AJ55=1,"True","False") -> True | AN55: 14 | AO55: Frame
C56: WA_vib_mod | D56: 80 | E56: ="8-12" -> 8-12 | F56: 384-388 | G56: ="8-12" -> 8-12 | I56: 14 | J56: b | K56: 26 | N56: o | O56: o | P56: 1 | Q56: 1 | R56: o | S56: o | AI56: 55 | AJ56: =IF($C$1=0,1,(INDEX($N$2:$S$64,AI56,$C$1))) -> 1 | AK56: 80 | AL56: visible | AM56: =IF(AJ56=1,"True","False") -> True | AN56: 14 | AO56: Frame
C57: WA_vib_high | D57: 83 | E57: 13-17 | F57: 389-393 | G57: 13-17 | I57: 15 | J57: c | K57: 26 | N57: o | O57: o | P57: 1 | Q57: 1 | R57: o | S57: o | AI57: 56 | AJ57: =IF($C$1=0,1,(INDEX($N$2:$S$64,AI57,$C$1))) -> 1 | AK57: 83 | AL57: visible | AM57: =IF(AJ57=1,"True","False") -> True | AN57: 14 | AO57: Frame
C58: WA_EU_HA_vib_L | D58: 44 | E58: 18-36 | F58: 394-412 | G58: 18-33 | I58: 16 | J58: d | K58: 27 | L58: 95-100 | M58: 6-11 | N58: o | O58: o | P58: 1 | Q58: 1 | R58: o | S58: o | AI58: 57 | AJ58: =IF($C$1=0,1,(INDEX($N$2:$S$64,AI58,$C$1))) -> 1 | AK58: 44 | AL58: visible | AM58: FALSE | AN58: 14 | AO58: Frame
C59: Notes | E59: 37-38 | F59: 413-414 | G59: 34-35 | J59: e | K59: 28 | N59: o | O59: o | P59: 1 | Q59: 1 | R59: o | S59: o | AI59: 58 | AJ59: =IF($C$1=0,1,(INDEX($N$2:$S$64,AI59,$C$1))) -> 1 | AK59: 44 | AL59: height | AM59: 126 | AN59: 14 | AO59: Frame
A60: 15 | B60: =ROW(C60) -> 60 | C60: Whole Body Vibration | D60: 13 | F60: 415 | H60: 10 | K60: 29 | N60: 1 | O60: 1 | P60: 1 | Q60: 1 | R60: 1 | S60: 1 | T60: =COUNTA(T54,T50,T45,T41,T39,T36,T29,T25,T11,T16,T7,T2)+1 -> 10 | U60: 12 | V60: 12 | W60: 12 | X60: 13 | Y60: 13 | Z60: 13 | AA60: 9 | AB60: 4 | AC60: 12 | AD60: 4 | AE60: 4 | AF60: 4 | AG60: 4 | AI60: 59 | AJ60: =IF($C$1=0,1,IF(N60>=1,1,"o")) -> 1
A61: Page13 | C61: QEC_driving_L | E61: 40-45 | F61: 416-421 | J61: h | K61: 29 | L61: 101 | M61: 12a | N61: o | O61: o | P61: o | Q61: o | R61: o | S61: o | T61: 10 | U61: 12 | V61: 12 | W61: 12 | AI61: 60 | AJ61: =IF($C$1=0,1,(INDEX($N$2:$S$64,AI61,$C$1))) -> 1 | AK61: 31 | AL61: visible | AM61: =IF(AJ61=1,"True","False") -> True | AN61: 15 | AO61: Frame
C62: WA_WBV_screener | E62: 46-51 | F62: 446-451 | J62: i | L62: 102 | M62: 12b | N62: 1 | O62: 1 | P62: 1 | Q62: 1 | R62: 1 | S62: 1 | AI62: 61 | AJ62: =IF($C$1=0,1,(INDEX($N$2:$S$64,AI62,$C$1))) -> 1 | AK62: 86 | AL62: visible | AM62: =IF(AJ62=1,"True","False") -> True | AN62: 15 | AO62: Frame
C63: EU_WBV_vib_L | D63: 33 | E63: 52-68 | F63: 422-439 | G63: ="8-20" -> 8-20 | I63: 18 | J63: j | K63: 30 | L63: 103-106 | M63: 12-15 | N63: 1 | O63: 1 | P63: 1 | Q63: 1 | R63: 1 | S63: 1 | T63: =IF(Home!$AN$100=2,1,0) -> 0 | U63: =IF(Home!$AN$100=2,1,0) -> 0 | V63: =IF(Home!$AN$100=2,1,0) -> 0 | W63: =IF(Home!$AN$100=2,1,0) -> 0 | X63: =IF(Home!$AN$100=2,1,0) -> 0 | Y63: =IF(Home!$AN$100=2,1,0) -> 0 | Z63: =IF(Home!$AN$100=2,1,0) -> 0 | AA63: =IF(Home!$AN$100=2,1,0) -> 0 | AB63: =IF(Home!$AN$100=2,1,0) -> 0 | AC63: =IF(Home!$AN$100=2,1,0) -> 0 | AD63: =IF(Home!$AN$100=2,1,0) -> 0 | AE63: =IF(Home!$AN$100=2,1,0) -> 0 | AF63: =IF(Home!$AN$100=2,1,0) -> 0 | AG63: =IF(Home!$AN$100=2,1,0) -> 0 | AH63: =IF(Home!$AN$100=2,1,0) -> 0 | AI63: 62 | AJ63: =IF($C$1=0,1,(INDEX($N$2:$S$64,AI63,$C$1))) -> 1 | AK63: 33 | AL63: height | AM63: 132 | AN63: 15 | AO63: Frame
C64: notes | E64: 69-70 | F64: 440-441 | J64: k | K64: 31 | N64: 1 | O64: 1 | P64: 1 | Q64: 1 | R64: 1 | S64: 1 | AI64: 63 | AJ64: =IF($C$1=0,1,(INDEX($N$2:$S$64,AI64,$C$1))) -> 1
C65: VizPgCt | N65: =COUNTA(N34,N60,N54,N50,N45,N41,N36,N25,N29,N11,N16,N7,N2,N39) -> 14 | O65: 14 | P65: 14 | Q65: 14 | R65: 14 | S65: 14 | X65: =SUM(X2:X64) -> 32

Sheet LM (hidden)
A1: Manual materials handling calculators based on Liberty Mutual data | J1: Source Document: | N1: 2002 Thomas E. Bernard | R1: University of South Florida | AI1: in kg | BM1: PUSH | BO1: 1 Move Every
AI2: mean | AK2: Second | AM2: Minute | AQ2: Hour | BM2: Second | BQ2: Minute | BU2: Hour
AI3: sd | AJ3: Distance | AK3: 10 | AL3: 20 | AM3: 1 | AN3: 2 | AO3: 5 | AP3: 30 | AQ3: 8 | BK3: Height | BL3: Dist [m] | BM3: 6 | BN3: 12 | BO3: 15 | BP3: 30 | BQ3: 1 | BR3: 2 | BS3: 5 | BT3: 30 | BU3: 8
H4: 7 FEET CARRY | Q4: 14 FEET CARRY | Z4: 27 FEET CARRY | AI4: Bent | AJ4: 1 | AK4: 15.8 | AL4: 16.83 | AM4: 17.66666667 | AN4: 17.66666667 | AO4: 18.16666667 | AP4: 18.16666667 | AQ4: 24.66666667 | AR4: 1 | BJ4: 1 | BK4: High | BL4: 2.1 | BM4: 20.16666667 | BN4: 21.66666667 | BO4: 22.5 | BP4: 24.17 | BQ4: 25 | BR4: 26 | BS4: 28.83333333 | BT4: 30 | BU4: 31.83333333 | BV4: =BL4*3.2808399 -> 6.88976379 | BW4: ="0 to 7 feet" -> 0 to 7 feet
H5: S | J5: Min | N5: Hrs | Q5: S | S5: Min | W5: Hrs | Z5: S | AB5: Min | AF5: Hrs | AK5: 5.14 | AL5: 6 | AM5: 3.606922055 | AN5: 3.606922055 | AO5: 3.801929855 | AP5: 3.801929855 | AQ5: 5.127693997 | AR5: 2 | BJ5: 2 | BL5: 2.1 | BM5: 4.932686196 | BN5: 5.127693997 | BO5: 5.36 | BP5: 5.84 | BQ5: 6.083087768 | BR5: 6.083087768 | BS5: 6.843473739 | BT5: 7.213844109 | BU5: 7.40885191 | BV5: =BL5*3.2808399 -> 6.88976379 | BW5: 0 to 7 feet
B6: Actual Weight | C6: =Home!$AN$107 -> 0 | H6: 10 | I6: 20 | J6: 1 | K6: 2 | L6: 5 | M6: 30 | N6: 8 | Q6: 10 | R6: 20 | S6: 1 | T6: 2 | U6: 5 | V6: 30 | W6: 8 | Z6: 10 | AA6: 20 | AB6: 1 | AC6: 2 | AD6: 5 | AE6: 30 | AF6: 8 | AJ6: 2 | AK6: 12.33333333 | AL6: 16.5 | AM6: 17.66666667 | AN6: 17.66666667 | AO6: 18.16666667 | AP6: 18.16666667 | AQ6: 24.33333333 | AR6: 3 | BJ6: 3 | BK6: Middle | BL6: 2.1 | BM6: 20.16666667 | BN6: 21.66666667 | BO6: 22.5 | BP6: 24.17 | BQ6: 25 | BR6: 26 | BS6: 28.83333333 | BT6: 30 | BU6: 31.83333333 | BV6: 6.88976379 | BW6: 0 to 7 feet
A7: Carry | B7: 0.75 | C7: =IF(OR($E$7<=0,$E$8<=0),0,INDEX(H7:AF8,E7,E8)) -> 0 | D7: Row | E7: =Home!$AN$106 -> 0 | F7: 75 | G7: elbows bent | H7: 28.6 | I7: 30.8 | J7: 33 | K7: 33 | L7: 35.2 | M7: 35.2 | N7: 46.2 | Q7: 24.2 | R7: 26.4 | S7: 33 | T7: 33 | U7: 35.2 | V7: 35.2 | W7: 46.2 | Z7: 0.001 | AA7: 26 | AB7: 30.8 | AC7: 30.8 | AD7: 30.8 | AE7: 30.8 | AF7: 41.8 | AK7: 2.476165713 | AL7: 5.88 | AM7: 3.606922055 | AN7: 3.606922055 | AO7: 3.801929855 | AP7: 3.801929855 | AQ7: 5.127693997 | AR7: 4 | BJ7: 4 | BL7: 2.1 | BM7: 4.932686196 | BN7: 5.127693997 | BO7: 5.36 | BP7: 5.84 | BQ7: 6.083087768 | BR7: 6.083087768 | BS7: 6.843473739 | BT7: 7.213844109 | BU7: 7.40885191 | BV7: 6.88976379 | BW7: 0 to 7 feet
D8: Column | E8: =IF(OR(Home!AN108=0,Home!AN109=0),0,Home!$AN$108+9*(Home!$AN$109-1)) -> 0 | G8: elbows straight | H8: 35 | I8: 37.4 | J8: 39.6 | K8: 39.6 | L8: 41.8 | M8: 41.8 | N8: 55 | Q8: 24.2 | R8: 28.6 | S8: 35.2 | T8: 35.2 | U8: 37.4 | V8: 37.4 | W8: 50.6 | Z8: 0.001 | AA8: 31 | AB8: 35.2 | AC8: 35.2 | AD8: 37.4 | AE8: 37.4 | AF8: 50.6 | AJ8: 3 | AK8: 0.001 | AL8: 14.47 | AM8: 16 | AN8: 16 | AO8: 16.33333333 | AP8: 16.33333333 | AQ8: 22 | AR8: 5 | BJ8: 5 | BK8: Low | BL8: 2.1 | BM8: 16.16666667 | BN8: 17.33333333 | BO8: 18 | BP8: 19.33 | BQ8: 20 | BR8: 20.66666667 | BS8: 23 | BT8: 24 | BU8: 25.33333333 | BV8: 6.88976379 | BW8: 0 to 7 feet
AK9: 0.001 | AL9: 5.15 | AM9: 3.041543884 | AN9: 3.041543884 | AO9: 3.606922055 | AP9: 3.606922055 | AQ9: 4.562315826 | AR9: 6 | BJ9: 6 | BL9: 2.1 | BM9: 3.801929855 | BN9: 3.996937655 | BO9: 4.14 | BP9: 4.42 | BQ9: 4.562315826 | BR9: 5.127693997 | BS9: 5.693072167 | BT9: 5.693072167 | BU9: 6.258450338 | BV9: 6.88976379 | BW9: 0 to 7 feet
B10: mean | C10: =IF(OR($E$10<=0,$E$11<=0),0,INDEX(AK4:AQ15,$E10,$E11)) -> 0 | D10: Row | E10: =1+2*(Home!$AN$109-1)+6*(Home!$AN$106-1) -> -7 | AI10: Straight | AJ10: 1 | AK10: 18.8 | AL10: 20.17 | AM10: 21.16666667 | AN10: 21.16666667 | AO10: 22 | AP10: 22 | AQ10: 29.16666667 | AR10: 7 | BJ10: 7 | BK10: High | BL10: 7.6 | BM10: 0.001 | BN10: 0.001 | BO10: 21.33333333 | BP10: 22.9 | BQ10: 23 | BR10: 23.83333333 | BS10: 26.16666667 | BT10: 27.33333333 | BU10: 29 | BV10: 24.93438324 | BW10: =">7 to 25 feet" -> >7 to 25 feet
B11: sd | C11: =IF(OR($E$10<=0,$E$11<=0),0,INDEX(AK4:AQ15,$E10+1,$E11)) -> 0 | D11: Column | E11: =Home!$AN$108 -> 0 | AK11: 6.14 | AL11: 7.18 | AM11: 4.367308026 | AN11: 4.367308026 | AO11: 4.562315826 | AP11: 4.562315826 | AQ11: 5.888079968 | AR11: 8 | BJ11: 8 | BL11: 7.6 | BM11: 0.001 | BN11: 0.001 | BO11: 5.127693997 | BP11: 5.48 | BQ11: 5.693072167 | BR11: 5.888079968 | BS11: 6.453458138 | BT11: 6.648465939 | BU11: 7.213844109 | BV11: 24.93438324 | BW11: >7 to 25 feet
B12: Percentile | C12: =IF(OR($C$10<=0,$C$11<=0),0,100*(NORMSDIST((2.2*C10-C6)/(2.2*C11)))) -> 0 | AJ12: 2 | AK12: 13.16666667 | AL12: 17.92 | AM12: 19 | AN12: 19 | AO12: 19.66666667 | AP12: 19.66666667 | AQ12: 26.33333333 | AR12: 9 | BJ12: 9 | BK12: Middle | BL12: 7.6 | BM12: 0.001 | BN12: 0.001 | BO12: 20 | BP12: 22.17 | BQ12: 23.33333333 | BR12: 24.16666667 | BS12: 26.83333333 | BT12: 28 | BU12: 29.83333333 | BV12: 24.93438324 | BW12: >7 to 25 feet
AK13: 2.846536084 | AL13: 6.38 | AM13: 4.172300225 | AN13: 4.172300225 | AO13: 3.996937655 | AP13: 3.996937655 | AQ13: 5.127693997 | AR13: 10 | BJ13: 10 | BL13: 7.6 | BM13: 0.001 | BN13: 0.001 | BO13: 4.562315826 | BP13: 5.29 | BQ13: 5.517709597 | BR13: 5.888079968 | BS13: 6.453458138 | BT13: 7.213844109 | BU13: 6.843473739 | BV13: 24.93438324 | BW13: >7 to 25 feet
AJ14: 3 | AK14: 0.001 | AL14: 16.5 | AM14: 18.83333333 | AN14: 19 | AO14: 19.66666667 | AP14: 19.66666667 | AQ14: 26.16666667 | AR14: 11 | BJ14: 11 | BK14: Low | BL14: 7.6 | BM14: 0.001 | BN14: 0.001 | BO14: 16.33333333 | BP14: 18.74 | BQ14: 20 | BR14: 20.66666667 | BS14: 23 | BT14: 23.83333333 | BU14: 25 | BV14: 24.93438324 | BW14: >7 to 25 feet
AK15: 0.001 | AL15: 5.88 | AM15: 3.801929855 | AN15: 4.172300225 | AO15: 3.996937655 | AP15: 3.996937655 | AQ15: 5.322701797 | AR15: 12 | BJ15: 12 | BL15: 7.6 | BM15: 0.001 | BN15: 0.001 | BO15: 3.996937655 | BP15: 4.46 | BQ15: 4.562315826 | BR15: 5.127693997 | BS15: 5.693072167 | BT15: 5.888079968 | BU15: 6.083087768 | BV15: 24.93438324 | BW15: >7 to 25 feet
H16: ="0 to 7 feet" -> 0 to 7 feet | Q16: =">7 to 24 feet" -> >7 to 24 feet | Z16: =">24 to 48 feet" -> >24 to 48 feet | AI16: =">48 to 97 feet" -> >48 to 97 feet | AR16: =">97 to 145 feet" -> >97 to 145 feet | BA16: =">145 feet" -> >145 feet | BJ16: 13 | BK16: High | BL16: 15.2 | BM16: 0.001 | BN16: 0.001 | BO16: 0.001 | BP16: 19.7 | BQ16: 20 | BR16: 20.16666667 | BS16: 22.16666667 | BT16: 23.33333333 | BU16: 24.83333333 | BV16: 49.86876648 | BW16: =">25 to 50 feet" -> >25 to 50 feet
H17: 7 FEET PUSH | Q17: 24 FEET PUSH | Z17: 48 FEET PUSH | AI17: 97 FEET PUSH | AR17: 145 FEET PUSH | BA17: 194 FEET PUSH | BJ17: 14 | BL17: 15.2 | BM17: 0.001 | BN17: 0.001 | BO17: 0.001 | BP17: 4.49 | BQ17: 4.562315826 | BR17: 4.932686196 | BS17: 5.322701797 | BT17: 5.517709597 | BU17: 5.888079968 | BV17: 49.86876648 | BW17: >25 to 50 feet
G18: Height (in) | H18: S | L18: Min | P18: Hrs | Q18: S | U18: Min | Y18: Hrs | Z18: S | AD18: Min | AH18: Hrs | AI18: S | AM18: Min | AQ18: Hrs | AR18: S | AV18: Min | AZ18: Hrs | BA18: S | BE18: Min | BI18: Hrs | BJ18: 15 | BK18: Middle | BL18: 15.2 | BM18: 0.001 | BN18: 0.001 | BO18: 0.001 | BP18: 18.51 | BQ18: 20 | BR18: 20.66666667 | BS18: 23 | BT18: 23.83333333 | BU18: 25 | BV18: 49.86876648 | BW18: >25 to 50 feet
B19: Actual Force | C19: =Home!$AN$117 -> 0 | H19: 6 | I19: 12 | J19: 15 | K19: 30 | L19: 1 | M19: 2 | N19: 5 | O19: 30 | P19: 8 | Q19: 6 | R19: 12 | S19: 15 | T19: 30 | U19: 1 | V19: 2 | W19: 5 | X19: 30 | Y19: 8 | Z19: 6 | AA19: 12 | AB19: 15 | AC19: 30 | AD19: 1 | AE19: 2 | AF19: 5 | AG19: 30 | AH19: 8 | AI19: 6 | AJ19: 12 | AK19: 15 | AL19: 30 | AM19: 1 | AN19: 2 | AO19: 5 | AP19: 30 | AQ19: 8 | AR19: 6 | AS19: 12 | AT19: 15 | AU19: 30 | AV19: 1 | AW19: 2 | AX19: 5 | AY19: 30 | AZ19: 8 | BA19: 6 | BB19: 12 | BC19: 15 | BD19: 30 | BE19: 1 | BF19: 2 | BG19: 5 | BH19: 30 | BI19: 8 | BJ19: 16 | BL19: 15.2 | BM19: 0.001 | BN19: 0.001 | BO19: 0.001 | BP19: 4.32 | BQ19: 4.562315826 | BR19: 5.127693997 | BS19: 5.693072167 | BT19: 5.888079968 | BU19: 6.083087768 | BV19: 49.86876648 | BW19: >25 to 50 feet
A20: Push | B20: 0.75 | C20: =IF(OR($E$20<=0,$E$21<=0),0,INDEX(H20:BI22,E20,E21)) -> 0 | D20: Row | E20: =Home!$AN$120 -> 0 | F20: 75 | G20: 55 | H20: 37.4 | I20: 39.6 | J20: 42 | K20: 44 | L20: 46.2 | M20: 48.4 | N20: 52.8 | O20: 55 | P20: 59.4 | Q20: 0.001 | R20: 0.001 | S20: 37.4 | T20: 42 | U20: 44 | V20: 44 | W20: 48.4 | X20: 50.6 | Y20: 52.8 | Z20: 0.001 | AA20: 0.001 | AB20: 0.001 | AC20: 37.4 | AD20: 37.4 | AE20: 37.4 | AF20: 41.8 | AG20: 44 | AH20: 46.2 | AI20: 0.001 | AJ20: 0.001 | AK20: 0.001 | AL20: 0.001 | AM20: 33 | AN20: 35.2 | AO20: 37.4 | AP20: 41.8 | AQ20: 46.2 | AR20: 0.001 | AS20: 0.001 | AT20: 0.001 | AU20: 0.001 | AV20: 33 | AW20: 35.2 | AX20: 37.4 | AY20: 41.8 | AZ20: 46.2 | BA20: 0.001 | BB20: 0.001 | BC20: 0.001 | BD20: 0.001 | BE20: 0.001 | BF20: 30.8 | BG20: 33 | BH20: 37.4 | BI20: 41.8 | BJ20: 17 | BK20: Low | BL20: 15.2 | BM20: 0.001 | BN20: 0.001 | BO20: 0.001 | BP20: 15.12 | BQ20: 17 | BR20: 17.66666667 | BS20: 19.16666667 | BT20: 20.16666667 | BU20: 21.33333333 | BV20: 49.86876648 | BW20: >25 to 50 feet
D21: Column | E21: =Home!$AN$118+9*(Home!$AN$123-1) -> -9 | G21: 36 | H21: 37.4 | I21: 39.6 | J21: 42 | K21: 44 | L21: 46.2 | M21: 48.4 | N21: 52.8 | O21: 55 | P21: 59.4 | Q21: 0.001 | R21: 0.001 | S21: 37.4 | T21: 42 | U21: 44 | V21: 44 | W21: 48.4 | X21: 50.6 | Y21: 55 | Z21: 0.001 | AA21: 0.001 | AB21: 0.001 | AC21: 35.2 | AD21: 37.4 | AE21: 37.4 | AF21: 41.8 | AG21: 44 | AH21: 46.2 | AI21: 0.001 | AJ21: 0.001 | AK21: 0.001 | AL21: 0.001 | AM21: 33 | AN21: 35.2 | AO21: 39.6 | AP21: 41.8 | AQ21: 46.2 | AR21: 0.001 | AS21: 0.001 | AT21: 0.001 | AU21: 0.001 | AV21: 33 | AW21: 35.2 | AX21: 39.6 | AY21: 41.8 | AZ21: 46.2 | BA21: 0.001 | BB21: 0.001 | BC21: 0.001 | BD21: 0.001 | BE21: 0.001 | BF21: 33 | BG21: 35.2 | BH21: 37.4 | BI21: 41.8 | BJ21: 18 | BL21: 15.2 | BM21: 0.001 | BN21: 0.001 | BO21: 0.001 | BP21: 3.61 | BQ21: 4.172300225 | BR21: 3.996937655 | BS21: 4.932686196 | BT21: 4.932686196 | BU21: 5.127693997 | BV21: 49.86876648 | BW21: >25 to 50 feet
G22: 24 | H22: 30.8 | I22: 33 | J22: 33 | K22: 35 | L22: 37.4 | M22: 37.4 | N22: 41.8 | O22: 44 | P22: 46.2 | Q22: 0.001 | R22: 0.001 | S22: 30.8 | T22: 35 | U22: 37.4 | V22: 37.4 | W22: 41.8 | X22: 44 | Y22: 46.2 | Z22: 0.001 | AA22: 0.001 | AB22: 0.001 | AC22: 28.6 | AD22: 30.8 | AE22: 33 | AF22: 35.2 | AG22: 37.4 | AH22: 39.6 | AI22: 0.001 | AJ22: 0.001 | AK22: 0.001 | AL22: 0.001 | AM22: 28.6 | AN22: 30.8 | AO22: 33 | AP22: 35.2 | AQ22: 39.6 | AR22: 0.001 | AS22: 0.001 | AT22: 0.001 | AU22: 0.001 | AV22: 28.6 | AW22: 30.8 | AX22: 33 | AY22: 35.2 | AZ22: 39.6 | BA22: 0.001 | BB22: 0.001 | BC22: 0.001 | BD22: 0.001 | BE22: 0.001 | BF22: 26.4 | BG22: 28.6 | BH22: 30.8 | BI22: 35.2 | BJ22: 19 | BK22: High | BL22: 30.5 | BM22: 0.001 | BN22: 0.001 | BO22: 0.001 | BP22: 0.001 | BQ22: 17.66666667 | BR22: 19 | BS22: 20.66666667 | BT22: 22.16666667 | BU22: 25 | BV22: 100.065617 | BW22: =">50 feet to 100 feet" -> >50 feet to 100 feet
B23: mean | C23: =IF(OR($E$23<=0,$E$24<=0),0,INDEX(BM4:BU39,$E23,$E24)) -> 0 | D23: Row | E23: =1+2*(Home!$AN$120-1)+6*(Home!$AN$123-1) -> -7 | H23: 1 | I23: 2 | J23: 3 | K23: 4 | L23: 5 | M23: 6 | N23: 7 | O23: 8 | P23: 9 | Q23: 10 | R23: 11 | S23: 12 | T23: 13 | U23: 14 | V23: 15 | W23: 16 | X23: 17 | Y23: 18 | Z23: 19 | AA23: 20 | AB23: 21 | AC23: 22 | AD23: 23 | AE23: 24 | AF23: 25 | AG23: 26 | AH23: 27 | AI23: 28 | AJ23: 29 | AK23: 30 | AL23: 31 | AM23: 32 | AN23: 33 | AO23: 34 | AP23: 35 | AQ23: 36 | AR23: 37 | AS23: 38 | AT23: 39 | AU23: 40 | AV23: 41 | AW23: 42 | AX23: 43 | AY23: 44 | AZ23: 45 | BA23: 46 | BB23: 47 | BC23: 48 | BD23: 49 | BE23: 50 | BF23: 51 | BG23: 52 | BH23: 53 | BI23: 54 | BJ23: 20 | BL23: 30.5 | BM23: 0.001 | BN23: 0.001 | BO23: 0.001 | BP23: 0.001 | BQ23: 3.996937655 | BR23: 4.562315826 | BS23: 5.127693997 | BT23: 5.322701797 | BU23: 6.083087768 | BV23: 100.065617 | BW23: >50 feet to 100 feet
B24: sd | C24: =IF(OR($E$23<=0,$E$24<=0),0,INDEX(BM4:BU39,$E23+1,$E24)) -> 0 | D24: Column | E24: =Home!$AN$118 -> 0 | F24: =Home!AN120 -> 0 | G24: AN120 | BJ24: 21 | BK24: Middle | BL24: 30.5 | BM24: 0.001 | BN24: 0.001 | BO24: 0.001 | BP24: 0.001 | BQ24: 18 | BR24: 19.83333333 | BS24: 21.16666667 | BT24: 22.83333333 | BU24: 25.66666667 | BV24: 100.065617 | BW24: >50 feet to 100 feet
B25: Percentile | C25: =IF(OR($C$23<=0,$C$24<=0),0,100*(NORMSDIST((2.2*C23-C19)/(2.2*C24)))) -> 0 | F25: =Home!AN123 -> 0 | G25: AN123 | BJ25: 22 | BL25: 30.5 | BM25: 0.001 | BN25: 0.001 | BO25: 0.001 | BP25: 0.001 | BQ25: 4.562315826 | BR25: 4.932686196 | BS25: 4.757323626 | BT25: 5.322701797 | BU25: 6.258450338 | BV25: 100.065617 | BW25: >50 feet to 100 feet
F26: =Home!AN118 -> 0 | G26: AN118 | BJ26: 23 | BK26: Low | BL26: 30.5 | BM26: 0.001 | BN26: 0.001 | BO26: 0.001 | BP26: 0.001 | BQ26: 15.33333333 | BR26: 16.83333333 | BS26: 17.83333333 | BT26: 19 | BU26: 21.66666667 | BV26: 100.065617 | BW26: >50 feet to 100 feet
BJ27: 24 | BL27: 30.5 | BM27: 0.001 | BN27: 0.001 | BO27: 0.001 | BP27: 0.001 | BQ27: 3.606922055 | BR27: 3.801929855 | BS27: 4.367308026 | BT27: 4.562315826 | BU27: 5.127693997 | BV27: 100.065617 | BW27: >50 feet to 100 feet
BJ28: 25 | BK28: High | BL28: 45.7 | BM28: 0.001 | BN28: 0.001 | BO28: 0.001 | BP28: 0.001 | BQ28: 17.66666667 | BR28: 19 | BS28: 20.66666667 | BT28: 22.16666667 | BU28: 25 | BV28: 149.9343834 | BW28: =">100 to 150 feet" -> >100 to 150 feet
BJ29: 26 | BL29: 45.7 | BM29: 0.001 | BN29: 0.001 | BO29: 0.001 | BP29: 0.001 | BQ29: 3.996937655 | BR29: 4.562315826 | BS29: 5.127693997 | BT29: 5.322701797 | BU29: 6.083087768 | BV29: 149.9343834 | BW29: >100 to 150 feet
BJ30: 27 | BK30: Middle | BL30: 45.7 | BM30: 0.001 | BN30: 0.001 | BO30: 0.001 | BP30: 0.001 | BQ30: 18 | BR30: 19.83333333 | BS30: 21.16666667 | BT30: 22.83333333 | BU30: 25.66666667 | BV30: 149.9343834 | BW30: >100 to 150 feet
BJ31: 28 | BL31: 45.7 | BM31: 0.001 | BN31: 0.001 | BO31: 0.001 | BP31: 0.001 | BQ31: 4.562315826 | BR31: 4.932686196 | BS31: 4.757323626 | BT31: 5.322701797 | BU31: 6.258450338 | BV31: 149.9343834 | BW31: >100 to 150 feet
BJ32: 29 | BK32: Low | BL32: 45.7 | BM32: 0.001 | BN32: 0.001 | BO32: 0.001 | BP32: 0.001 | BQ32: 15.33333333 | BR32: 16.83333333 | BS32: 17.83333333 | BT32: 19 | BU32: 21.66666667 | BV32: 149.9343834 | BW32: >100 to 150 feet
H33: 7 FEET PULL | Q33: 24 FEET PULL | Z33: 48 FEET PULL | AI33: 97 FEET PULL | AR33: 145 FEET PULL | BA33: 194 FEET PULL | BJ33: 30 | BL33: 45.7 | BM33: 0.001 | BN33: 0.001 | BO33: 0.001 | BP33: 0.001 | BQ33: 3.606922055 | BR33: 3.801929855 | BS33: 4.367308026 | BT33: 4.562315826 | BU33: 5.127693997 | BV33: 149.9343834 | BW33: >100 to 150 feet
G34: Height (in) | H34: S | L34: Min | P34: Hrs | Q34: S | U34: Min | Y34: Hrs | Z34: S | AD34: Min | AH34: Hrs | AM34: Min | AQ34: Hrs | AV34: Min | AZ34: Hrs | BF34: Min | BI34: Hrs | BJ34: 31 | BK34: High | BL34: 61 | BM34: 0.001 | BN34: 0.001 | BO34: 0.001 | BP34: 0.001 | BQ34: 0.001 | BR34: 17 | BS34: 18.16666667 | BT34: 20 | BU34: 22.16666667 | BV34: 200.1312339 | BW34: =">150 feet" -> >150 feet
C35: overall3: | H35: 6 | I35: 12 | J35: 15 | K35: 30 | L35: 1 | M35: 2 | N35: 5 | O35: 30 | P35: 8 | Q35: 6 | R35: 12 | S35: 15 | T35: 30 | U35: 1 | V35: 2 | W35: 5 | X35: 30 | Y35: 8 | Z35: 6 | AA35: 12 | AB35: 15 | AC35: 30 | AD35: 1 | AE35: 2 | AF35: 5 | AG35: 30 | AH35: 8 | AI35: 6 | AJ35: 12 | AK35: 15 | AL35: 30 | AM35: 1 | AN35: 2 | AO35: 5 | AP35: 30 | AQ35: 8 | AR35: 6 | AS35: 12 | AT35: 15 | AU35: 30 | AV35: 1 | AW35: 2 | AX35: 5 | AY35: 30 | AZ35: 8 | BA35: 6 | BB35: 12 | BC35: 15 | BD35: 30 | BE35: 1 | BF35: 2 | BG35: 5 | BH35: 30 | BI35: 8 | BJ35: 32 | BL35: 61 | BM35: 0.001 | BN35: 0.001 | BO35: 0.001 | BP35: 0.001 | BQ35: 0.001 | BR35: 4.172300225 | BS35: 4.367308026 | BT35: 4.562315826 | BU35: 5.322701797 | BV35: 200.1312339 | BW35: >150 feet
A36: Pull | B36: 0.75 | C36: =IF(OR($E$36<=0,$E$37<=0),0,INDEX(H36:BI38,E36,E37)) -> 0 | D36: Row | E36: =Home!$AN$120 -> 0 | F36: 75 | G36: 55 | H36: 35.2 | I36: 41.8 | J36: 41.8 | K36: 44 | L36: 44 | M36: 46.2 | N36: 52.8 | O36: 55 | P36: 57.2 | Q36: 0.001 | R36: 0.001 | S36: 35.2 | T36: 40 | U36: 41.8 | V36: 41.8 | W36: 46.2 | X36: 48.4 | Y36: 52.8 | Z36: 0.001 | AA36: 0.001 | AB36: 0.001 | AC36: 30.8 | AD36: 35.2 | AE36: 35.2 | AF36: 39.6 | AG36: 41.8 | AH36: 44 | AI36: 0.001 | AJ36: 0.001 | AK36: 0.001 | AL36: 0.001 | AM36: 30.8 | AN36: 35.2 | AO36: 37.4 | AP36: 39.6 | AQ36: 44 | AR36: 0.001 | AS36: 0.001 | AT36: 0.001 | AU36: 0.001 | AV36: 30.8 | AW36: 35.2 | AX36: 37.4 | AY36: 39.6 | AZ36: 44 | BA36: 0.001 | BB36: 0.001 | BC36: 0.001 | BD36: 0.001 | BE36: 0.001 | BF36: 30.8 | BG36: 33 | BH36: 35.2 | BI36: 39.6 | BJ36: 33 | BK36: Middle | BL36: 61 | BM36: 0.001 | BN36: 0.001 | BO36: 0.001 | BP36: 0.001 | BQ36: 0.001 | BR36: 17.66666667 | BS36: 19 | BT36: 20.16666667 | BU36: 23 | BV36: 200.1312339 | BW36: >150 feet
D37: Column | E37: =Home!$AN$118+9*(Home!$AN$123-1) -> -9 | G37: 36 | H37: 35.2 | I37: 41.8 | J37: 44 | K37: 46.2 | L37: 46.2 | M37: 48.4 | N37: 55 | O37: 57.2 | P37: 59.4 | Q37: 0.001 | R37: 0.001 | S37: 37.4 | T37: 39.6 | U37: 41.8 | V37: 44 | W37: 48.4 | X37: 50.6 | Y37: 55 | Z37: 0.001 | AA37: 0.001 | AB37: 0.001 | AC37: 30.8 | AD37: 37.4 | AE37: 37.4 | AF37: 41.8 | AG37: 44 | AH37: 46.2 | AI37: 0.001 | AJ37: 0.001 | AK37: 0.001 | AL37: 0.001 | AM37: 33 | AN37: 35.2 | AO37: 39.6 | AP37: 41.8 | AQ37: 46.2 | AR37: 0.001 | AS37: 0.001 | AT37: 0.001 | AU37: 0.001 | AV37: 33 | AW37: 35.2 | AX37: 39.6 | AY37: 41.8 | AZ37: 46.2 | BA37: 0.001 | BB37: 0.001 | BC37: 0.001 | BD37: 0.001 | BE37: 0.001 | BF37: 33 | BG37: 35.2 | BH37: 37.4 | BI37: 41.8 | BJ37: 34 | BL37: 61 | BM37: 0.001 | BN37: 0.001 | BO37: 0.001 | BP37: 0.001 | BQ37: 0.001 | BR37: 3.996937655 | BS37: 4.562315826 | BT37: 4.932686196 | BU37: 5.693072167 | BV37: 200.1312339 | BW37: >150 feet
G38: 24 | H38: 37.4 | I38: 44 | J38: 46.2 | K38: 48.4 | L38: 48.4 | M38: 50.6 | N38: 57.2 | O38: 59.4 | P38: 61.6 | Q38: 0.001 | R38: 0.001 | S38: 37.4 | T38: 41.8 | U38: 44 | V38: 46.2 | W38: 50.6 | X38: 52.8 | Y38: 57.2 | Z38: 0.001 | AA38: 0.001 | AB38: 0.001 | AC38: 33 | AD38: 37.4 | AE38: 39.6 | AF38: 44 | AG38: 46.2 | AH38: 48.4 | AI38: 0.001 | AJ38: 0.001 | AK38: 0.001 | AL38: 0.001 | AM38: 35.2 | AN38: 37.4 | AO38: 39.6 | AP38: 44 | AQ38: 48.4 | AR38: 0.001 | AS38: 0.001 | AT38: 0.001 | AU38: 0.001 | AV38: 35.2 | AW38: 37.4 | AX38: 39.6 | AY38: 44 | AZ38: 48.4 | BA38: 0.001 | BB38: 0.001 | BC38: 0.001 | BD38: 0.001 | BE38: 0.001 | BF38: 33 | BG38: 35.2 | BH38: 39.6 | BI38: 44 | BJ38: 35 | BK38: Low | BL38: 61 | BM38: 0.001 | BN38: 0.001 | BO38: 0.001 | BP38: 0.001 | BQ38: 0.001 | BR38: 14.66666667 | BS38: 16 | BT38: 17.16666667 | BU38: 19.16666667 | BV38: 200.1312339 | BW38: >150 feet
B39: mean | C39: =IF(OR($E$39<=0,$E$40<=0),0,INDEX(BM44:BU79,$E39,$E40)) -> 0 | D39: Row | E39: =1+2*(Home!$AN$120-1)+6*(Home!$AN$123-1) -> -7 | BJ39: 36 | BL39: 61 | BM39: 0.001 | BN39: 0.001 | BO39: 0.001 | BP39: 0.001 | BQ39: 0.001 | BR39: 3.606922055 | BS39: 4.172300225 | BT39: 4.367308026 | BU39: 4.932686196 | BV39: 200.1312339 | BW39: >150 feet
B40: sd | C40: =IF(OR($E$39<=0,$E$40<=0),0,INDEX(BM44:BU79,$E39+1,$E40)) -> 0 | D40: Column | E40: =Home!$AN$118 -> 0
B41: Percentile | C41: =IF(OR($C$39<=0,$C$40<=0),0,100*(NORMSDIST((2.2*C39-C19)/(2.2*C40)))) -> 0 | BM41: PULL | BO41: 1 Move Every
BM42: Second | BQ42: Minute | BU42: Hour
BL43: Dist [m] | BM43: 6 | BN43: 12 | BO43: 15 | BP43: 30 | BQ43: 1 | BR43: 2 | BS43: 5 | BT43: 30 | BU43: 8
BK44: High | BL44: 2.1 | BM44: 18.66666667 | BN44: 22 | BO44: 22.5 | BP44: 23.5 | BQ44: 24 | BR44: 25 | BS44: 28 | BT44: 29 | BU44: 30.66666667
BL45: 2.1 | BM45: 3.996937655 | BN45: 4.562315826 | BO45: 4.83 | BP45: 5.4 | BQ45: 5.693072167 | BR45: 5.693072167 | BS45: 6.083087768 | BT45: 6.083087768 | BU45: 6.648465939
BK46: Middle | BL46: 2.1 | BM46: 19.16666667 | BN46: 22.66666667 | BO46: 23.25 | BP46: 24.42 | BQ46: 25 | BR46: 26 | BS46: 29 | BT46: 30.33333333 | BU46: 32
BL47: 2.1 | BM47: 4.367308026 | BN47: 5.127693997 | BO47: 5.27 | BP47: 5.55 | BQ47: 5.693072167 | BR47: 5.693072167 | BS47: 6.083087768 | BT47: 6.648465939 | BU47: 7.213844109
BK48: Low | BL48: 2.1 | BM48: 20.16666667 | BN48: 23.83333333 | BO48: 24.42 | BP48: 25.58 | BQ48: 26.16666667 | BR48: 27.16666667 | BS48: 30.33333333 | BT48: 31.66666667 | BU48: 33.16666667
BL49: 2.1 | BM49: 4.367308026 | BN49: 5.322701797 | BO49: 5.46 | BP49: 5.75 | BQ49: 5.888079968 | BR49: 5.888079968 | BS49: 6.648465939 | BT49: 6.648465939 | BU49: 7.40885191
BK50: High | BL50: 7.6 | BM50: 0.001 | BN50: 0.001 | BO50: 18.66666667 | BP50: 20.84 | BQ50: 22 | BR50: 22.66666667 | BS50: 25 | BT50: 26.16666667 | BU50: 28
BL51: 7.6 | BM51: 0.001 | BN51: 0.001 | BO51: 3.996937655 | BP51: 4.57 | BQ51: 4.562315826 | BR51: 5.127693997 | BS51: 5.693072167 | BT51: 5.888079968 | BU51: 6.083087768
BK52: Middle | BL52: 7.6 | BM52: 0.001 | BN52: 0.001 | BO52: 19.33333333 | BP52: 21.7 | BQ52: 22.66666667 | BR52: 23.66666667 | BS52: 26 | BT52: 27.16666667 | BU52: 29
BL53: 7.6 | BM53: 0.001 | BN53: 0.001 | BO53: 3.996937655 | BP53: 4.8 | BQ53: 5.127693997 | BR53: 5.127693997 | BS53: 5.693072167 | BT53: 5.888079968 | BU53: 6.083087768
BK54: Low | BL54: 7.6 | BM54: 0.001 | BN54: 0.001 | BO54: 20.16666667 | BP54: 22.77 | BQ54: 23.83333333 | BR54: 25 | BS54: 27.66666667 | BT54: 28.83333333 | BU54: 30.33333333
BL55: 7.6 | BM55: 0.001 | BN55: 0.001 | BO55: 4.367308026 | BP55: 4.87 | BQ55: 5.322701797 | BR55: 5.693072167 | BS55: 6.258450338 | BT55: 6.453458138 | BU55: 6.648465939
BK56: High | BL56: 15.2 | BM56: 0.001 | BN56: 0.001 | BO56: 0.001 | BP56: 16.03 | BQ56: 18.66666667 | BR56: 19.16666667 | BS56: 21.16666667 | BT56: 22.33333333 | BU56: 23.66666667
BL57: 15.2 | BM57: 0.001 | BN57: 0.001 | BO57: 0.001 | BP57: 3.53 | BQ57: 3.996937655 | BR57: 4.367308026 | BS57: 4.932686196 | BT57: 5.127693997 | BU57: 5.127693997
BK58: Middle | BL58: 15.2 | BM58: 0.001 | BN58: 0.001 | BO58: 0.001 | BP58: 16.76 | BQ58: 19.33333333 | BR58: 20 | BS58: 22.33333333 | BT58: 23.33333333 | BU58: 24.83333333
BL59: 15.2 | BM59: 0.001 | BN59: 0.001 | BO59: 0.001 | BP59: 3.7 | BQ59: 3.996937655 | BR59: 4.562315826 | BS59: 5.127693997 | BT59: 5.127693997 | BU59: 5.322701797
BK60: Low | BL60: 15.2 | BM60: 0.001 | BN60: 0.001 | BO60: 0.001 | BP60: 17.61 | BQ60: 20.16666667 | BR60: 21 | BS60: 23.33333333 | BT60: 24.33333333 | BU60: 26
BL61: 15.2 | BM61: 0.001 | BN61: 0.001 | BO61: 0.001 | BP61: 4.02 | BQ61: 4.367308026 | BR61: 4.562315826 | BS61: 5.127693997 | BT61: 5.127693997 | BU61: 5.693072167
BK62: High | BL62: 30.5 | BM62: 0.001 | BN62: 0.001 | BO62: 0.001 | BP62: 0.001 | BQ62: 16.83333333 | BR62: 18.33333333 | BS62: 19.83333333 | BT62: 21 | BU62: 23.83333333
BL63: 30.5 | BM63: 0.001 | BN63: 0.001 | BO63: 0.001 | BP63: 0.001 | BQ63: 3.801929855 | BR63: 3.996937655 | BS63: 4.367308026 | BT63: 4.562315826 | BU63: 5.322701797
BK64: Middle | BL64: 30.5 | BM64: 0.001 | BN64: 0.001 | BO64: 0.001 | BP64: 0.001 | BQ64: 17.83333333 | BR64: 19.16666667 | BS64: 20.83333333 | BT64: 22 | BU64: 25
BL65: 30.5 | BM65: 0.001 | BN65: 0.001 | BO65: 0.001 | BP65: 0.001 | BQ65: 3.801929855 | BR65: 4.367308026 | BS65: 4.367308026 | BT65: 4.562315826 | BU65: 5.693072167
BK66: Low | BL66: 30.5 | BM66: 0.001 | BN66: 0.001 | BO66: 0.001 | BP66: 0.001 | BQ66: 18.33333333 | BR66: 20 | BS66: 21.66666667 | BT66: 23.33333333 | BU66: 26.16666667
BL67: 30.5 | BM67: 0.001 | BN67: 0.001 | BO67: 0.001 | BP67: 0.001 | BQ67: 3.996937655 | BR67: 4.562315826 | BS67: 5.127693997 | BT67: 5.127693997 | BU67: 5.888079968
BK68: High | BL68: 45.7 | BM68: 0.001 | BN68: 0.001 | BO68: 0.001 | BP68: 0.001 | BQ68: 16.83333333 | BR68: 18.33333333 | BS68: 19.83333333 | BT68: 21 | BU68: 23.83333333
BL69: 45.7 | BM69: 0.001 | BN69: 0.001 | BO69: 0.001 | BP69: 0.001 | BQ69: 3.801929855 | BR69: 3.996937655 | BS69: 4.367308026 | BT69: 4.562315826 | BU69: 5.322701797
BK70: Middle | BL70: 45.7 | BM70: 0.001 | BN70: 0.001 | BO70: 0.001 | BP70: 0.001 | BQ70: 17.83333333 | BR70: 19.16666667 | BS70: 20.83333333 | BT70: 22 | BU70: 25
BL71: 45.7 | BM71: 0.001 | BN71: 0.001 | BO71: 0.001 | BP71: 0.001 | BQ71: 3.801929855 | BR71: 4.367308026 | BS71: 4.367308026 | BT71: 4.562315826 | BU71: 5.693072167
BK72: Low | BL72: 45.7 | BM72: 0.001 | BN72: 0.001 | BO72: 0.001 | BP72: 0.001 | BQ72: 18.33333333 | BR72: 20 | BS72: 21.66666667 | BT72: 23.33333333 | BU72: 26.16666667
BL73: 45.7 | BM73: 0.001 | BN73: 0.001 | BO73: 0.001 | BP73: 0.001 | BQ73: 3.996937655 | BR73: 4.562315826 | BS73: 5.127693997 | BT73: 5.127693997 | BU73: 5.888079968
BK74: High | BL74: 61 | BM74: 0.001 | BN74: 0.001 | BO74: 0.001 | BP74: 0.001 | BQ74: 0.001 | BR74: 16.33333333 | BS74: 17.83333333 | BT74: 19 | BU74: 21.16666667
BL75: 61 | BM75: 0.001 | BN75: 0.001 | BO75: 0.001 | BP75: 0.001 | BQ75: 0.001 | BR75: 3.606922055 | BS75: 3.801929855 | BT75: 4.172300225 | BU75: 4.932686196
BK76: Middle | BL76: 61 | BM76: 0.001 | BN76: 0.001 | BO76: 0.001 | BP76: 0.001 | BQ76: 0.001 | BR76: 17.16666667 | BS76: 18.33333333 | BT76: 19.83333333 | BU76: 22.33333333
BL77: 61 | BM77: 0.001 | BN77: 0.001 | BO77: 0.001 | BP77: 0.001 | BQ77: 0.001 | BR77: 3.801929855 | BS77: 3.996937655 | BT77: 4.367308026 | BU77: 5.127693997
BK78: Low | BL78: 61 | BM78: 0.001 | BN78: 0.001 | BO78: 0.001 | BP78: 0.001 | BQ78: 0.001 | BR78: 18 | BS78: 19.16666667 | BT78: 21 | BU78: 23.33333333
BL79: 61 | BM79: 0.001 | BN79: 0.001 | BO79: 0.001 | BP79: 0.001 | BQ79: 0.001 | BR79: 4.172300225 | BS79: 4.367308026 | BT79: 4.562315826 | BU79: 5.127693997

Sheet Strain Index (hidden)
A1: Task Description
A4: Variable | B4: Level | C4: Observation | E4: Variable Multiplier | F4: Enter Multiplier
A5: Intensity of Exertion | B5: Light | C5: Light: Barely noticeable or relaxed effort (BS: 0-2) | E5: 1
B6: Somewhat Hard | C6: Somewhat Hard: Noticeable or definite effort (BS: 3) | E6: 3
B7: Hard | C7: Hard: Obvious effort; Unchanged facial expression (BS: 4-5) | E7: 6
B8: Very Hard | C8: Very Hard: Substantial effort; Changes expression (BS: 6-7) | E8: 9
B9: Near Maximal | C9: Near Maximal: Uses shoulder or trunk for force (BS: 8-10) | E9: 13 | F9: =IF(Home!AN73=5,E9,IF(Home!AN73=4,E8,IF(Home!AN73=3,E7,IF(Home!AN73=2,E6,IF(Home!AN73=1,E5,0))))) -> 0
A10: Duration of Exertion (% of Cycle) | B10: < 10% | E10: 0.5
B11: 10-29% | E11: 1
B12: 30-49% | E12: 1.5
B13: 50-79% | E13: 2
B14: > 80% | E14: 3 | F14: =IF(Home!AN74=5,E14,IF(Home!AN74=4,E13,IF(Home!AN74=3,E12,IF(Home!AN74=2,E11,IF(Home!AN74=1,E10,0))))) -> 0
A15: Efforts Per Minute | B15: < 4 | E15: 0.5
B16: 4 - 8 | E16: 1
B17: 9 - 14 | E17: 1.5
B18: 15 - 19 | E18: 2
B19: > 20 | E19: 3 | F19: =IF(Home!AN79=5,E19,IF(Home!AN79=4,E18,IF(Home!AN79=3,E17,IF(Home!AN79=2,E16,IF(Home!AN79=1,E15,0))))) -> 0
A20: Hand/Wrist Posture | B20: Very Good | C20: Perfectly Neutral | E20: 1
B21: Good | C21: Near Neutral | E21: 1
B22: Fair | C22: Non-Neutral | E22: 1.5
B23: Bad | C23: Marked Deviation | E23: 2
B24: Very Bad | C24: Near Extreme | E24: 3 | F24: =IF(Home!AN82=0,0,IF(Home!AN82=5,E24,IF(Home!AN82=4,E23,IF(Home!AN82=3,E22,E21)))) -> 0
A25: Speed of Work | B25: Very Slow | C25: Extremely relaxed pace | E25: 1
B26: Slow | C26: Taking one's own time | E26: 1
B27: Fair | C27: Normal speed of motion | E27: 1
B28: Fast | C28: Rushed, but able to keep up | E28: 1.5
B29: Very Fast | C29: Rushed and barely/unable to keep up | E29: 2 | F29: =IF(Home!AN85=0,0,IF(Home!AN85=5,E29,IF(Home!AN85=4,E28,E27))) -> 0
A30: Duration of Task Per Day (hours) | B30: <1 | E30: 0.25
B31: 1 - 2 | E31: 0.5
B32: 2 - 4 | E32: 0.75
B33: 4 - 8 | E33: 1
B34: > 8 | E34: 1.5 | F34: =IF(Home!AN88=5,E34,IF(Home!AN88=4,E33,IF(Home!AN88=3,E32,IF(Home!AN88=2,E31,E30)))) -> 0.25
H35: SI Score | I35: Interpretation
E36: SI = | F36: =F9*F14*F19*F24*F29*F34 -> 0 | H36: < 3 | I36: Safe
H37: 3-5 | I37: Uncertain
H38: 5-7 | I38: Some Risk
H39: > 7 | I39: Hazardous

Sheet TLV (hidden)
A1: TLVs for Lifting Tasks
E2: Infrequent | G2: The lifting is | H2: =IF(AND(Home!AN22=2,Home!AN24<3),"Frequent, long duration",IF(OR(AND(Home!AN22=2,Home!AN24=3),AND(Home!AN22=1,Home!AN24<3)),"Moderately frequent","Infrequent")) -> Infrequent | J2: Row | K2: =IF(AND(H2=E2,H10=1),9,IF(AND(H2=E2,H10=2),10,IF(AND(H2=E2,H10=3),11,IF(AND(H2=E2,H10=4),12,IF(AND(H2=E3,H10=1),23,IF(AND(H2=E3,H10=2),24,IF(AND(H2=E3,H10=3),25,IF(AND(H2=E3,H10=4),26,IF(AND(H2=E4,H10=1),35,IF(AND(H2=E4,H10=2),36,IF(AND(H2=E4,H10=3),37,IF(AND(H2=E4,H10=4),38,0)))))))))))) -> 0
A3: Infrequent | E3: Moderately frequent | G3: The hand vertical location is | J3: Column | K3: =IF(H11=1,2,IF(H11=2,3,4)) -> 4
A4: <= 2 Hours per day with <= 60 lifts per hour | E4: Frequent, long duration | G4: The hand distance is
A5: Or
A6: > 2 Hours per day with <= 12 lifts per hour
A7: Hand location | G7: The safe lifting limit is | H7: =INDEX(A1:D38,K2,K3) -> 0
A8: Vertical Zone | B8: Close: 0-12" (0-30 cm) | C8: Intermediate: 12"-24" (30-60 cm) | D8: Extended: 25"-32" (60-80 cm)
A9: Shoulder area (from 3" below) up to the reach limit | B9: 35.2 | C9: 15.4 | D9: 0.0001
A10: Torso area: knuchle height to shoulder | B10: 70.4 | C10: 35.2 | D10: 19.8 | G10: Handle height from back form | H10: =Home!AN32 -> 0
A11: Knee area: knuckle to middle of shin height | B11: 39.7 | C11: 30.8 | D11: 15.4 | G11: Distance from back form | H11: =Home!AN35 -> 0
A12: Ankle area: middle of shin height to floor | B12: 30.8 | C12: 0.0001 | D12: 0.0001
A17: Moderately frequent
A18: >2 Hours per day with > 12 and <= 30 lifts per hour
A19: Or
A20: <= 2 Hours per day with > 60 and <= 360 lifts per hour
A21: Hand location
A22: Vertical Zone | B22: Close: 0-12" (0-30 cm) | C22: Intermediate: 12"-24" (30-60 cm) | D22: Extended: 25"-32" (60-80 cm)
A23: Shoulder area (from 3" below) up to the reach limit | B23: 30.7 | C23: 11 | D23: 0.0001
A24: Torso area: knuchle height to shoulder | B24: 59.5 | C24: 30.7 | D24: 15.4
A25: Knee area: knuckle to middle of shin height | B25: 35.2 | C25: 24.2 | D25: 11
A26: Ankle area: middle of shin height to floor | B26: 19.8 | C26: 0.0001 | D26: 0.0001
A31: Frequent, long duration
A32: >2 Hours per day with > 30 and <= 360 lifts per hour
A33: Hand location
A34: Vertical Zone | B34: Close: 0-12" (0-30 cm) | C34: Intermediate: 12"-24" (30-60 cm) | D34: Extended: 25"-32" (60-80 cm)
A35: Shoulder area (from 3" below) up to the reach limit | B35: 24.2 | C35: 0.0001 | D35: 0.0001
A36: Torso area: knuchle height to shoulder | B36: 30.7 | C36: 19.8 | D36: 11
A37: Knee area: knuckle to middle of shin height | B37: 19.8 | C37: 15.4 | D37: 4.4
A38: Ankle area: middle of shin height to floor | B38: 0.0001 | C38: 0.0001 | D38: 0.0001
A42: WA Lifting
A43: Weight by location | B43: Near | C43: Mid | D43: Extended | G43: WA Height | H43: =IF(Home!AN32=0,1,Home!AN32) -> 1
A44: Above shoulder | B44: 65 | C44: 40 | D44: 30 | G44: WA Distance | H44: =IF(Home!AN35=0,1,Home!AN35) -> 1
A45: Waist to shoulder | B45: 70 | C45: 50 | D45: 40 | G45: WA Step 2 | H45: =INDEX(B44:D47,H43,H44) -> 65
A46: Knee to waist | B46: 90 | C46: 55 | D46: 40
A47: Below knee | B47: 70 | C47: 50 | D47: 35
A49: WA Frequency | B49: 1 hr or less | C49: 1-2 hrs | D49: 2hrs+ | G49: WA Frequency | H49: =IF(Home!AN24=0,1,Home!AN24) -> 1
A50: Less than once per 5 minutes | B50: 1 | C50: 1 | D50: 1 | G50: WA Duration | H50: =IF(Home!AN22=0,1,IF(OR(Home!AN22=1,Home!AN22=3),1,IF(OR(Home!AN22=2,Home!AN22=4),2,IF(Home!AN22=5,3)))) -> 1
A51: 1 per 2-5 min | B51: 1 | C51: 0.95 | D51: 0.85 | G51: WA Step 3 | H51: =INDEX(B50:D57,H49,H50) -> 1
A52: 1 per min | B52: 0.95 | C52: 0.9 | D52: 0.75
A53: 2-3 per min | B53: 0.9 | C53: 0.85 | D53: 0.65
A54: 4-5 per min | B54: 0.85 | C54: 0.7 | D54: 0.45
A55: 6-7 per min | B55: 0.75 | C55: 0.5 | D55: 0.25
A56: 8-9 per min | B56: 0.6 | C56: 0.35 | D56: 0.15
A57: 10+ per min | B57: 0.3 | C57: 0.2 | D57: 0

Sheet QEC (hidden)
A1: QEC | C1: Assessment from forms | I1: =IF(OR(F2="",F4="",F5="",F6=""),0,IF(OR(C2=0,C3=0),0,IF(C3<3,SUM(F2:F5),SUM(F2:F4)+F6+F7))) -> 0 | O1: Answer items
A2: A | B2: back posture | C2: =Home!AN5 -> 0 | E2: Back Score 1 | F2: =IF(OR(C9="",C10=0),"",C2*2+2*(C9-1)) ->  | H2: Back Score | I2: =IF(OR(F2="",F4="",F5="",F6=""),0,IF(OR(C2=0,C3=0),0,IF(C3<3,SUM(F2:F5),SUM(F2:F4)+F6+F7))) -> 0 | J2: =IF(C3>2,"Dynamic",IF(C3<3,"Static","")) -> Static | K2: =IF(I2<J3,$A$19,IF(I2<J4,$A$20,IF(I2<J5,$A$21,$A$22))) -> 1 | L2: =IF(K2=4,$B$22,IF(K2=3,$B$21,IF(K2=2,$B$20,IF(K2=1,$B$19,"")))) -> Low risk | O2: Almost neutral | P2: Light (5 kg/10 lb or less)
A3: B | B3: back movements | C3: =Home!AN9 -> 0 | E3: Back Score 2 | F3: =IF(C10=0,0,C2*2+2*(C10-1)) -> 0 | H3: =IF(C3=0,0,IF(C3<=2,(COUNTA(F2:F5))/4,IF(C3>3,(COUNTA(F2:F4,F6:F7)/5)))) -> 0 | J3: =IF($C$3<3,15,IF($C$3>2,21,0)) -> 15 | O3: Moderately flexed or twisted or side bent | P3: Moderate (6 to 10 kg or 10 to 22 lb)
A4: C | B4: shdr, hand height | C4: =Home!AN38 -> 0 | E4: Back Score 3 | F4: =IF(OR(C9="",C10=0),"",C9*2+2*(C10-1)) ->  | J4: =IF($C$3<3,23,IF($C$3>2,31,0)) -> 23 | O4: Exessively flexed or twisted or side bent | P4: Heavy (11 to 20 kg or 22 to 44 lb)
A5: D | B5: shdr, frequency | C5: =Home!AN41 -> 0 | E5: Back Score 4 | F5: =IF(C10=0,0,IF(C3<3,C10*2+2*(C3-1),0)) -> 0 | J5: =IF($C$3<3,29,IF($C$3>2,41,0)) -> 29 | P5: Very Heavy (more than 20 kg/44 lb)
A6: E | B6: wrist posture | C6: 1 | E6: Back Score 5 | F6: =IF(C9="","",IF(C3>2,C9*2+2*(C3-3),0)) ->  | O6: No
A7: F | B7: wrist motions | C7: 1 | E7: Back Score 6 | F7: =IF(C3>2,C10*2+2*(C3-3),0) -> 0 | O7: Yes | P7: Less than 2 hours
A8: G | B8: neck posture | C8: =Home!AN44 -> 0 | E8: Shoulder Score 1 | F8: =IF(OR(C9="",C10=0),0,(C4*2+2*(C9-1))) -> 0 | H8: Shoulder Score | I8: =IF(AND(F8>0,F9>0,F10>0,F11>0,F12>0),SUM(F8:F12),0) -> 0 | J8: 21 | K8: =IF(I8<J8,$A$19,IF(I8<J9,$A$20,IF(I8<J10,$A$21,$A$22))) -> 1 | L8: =IF(K8=4,$B$22,IF(K8=3,$B$21,IF(K8=2,$B$20,IF(K8=1,$B$19,"")))) -> Low risk | P8: 2-4 hours
A9: H | B9: MMH max weight | C9: =IF(Home!AN20=0,"",Home!AN20) ->  | E9: Shoulder Score 2 | F9: =IF(C10=0,0,C4*2+2*(C10-1)) -> 0 | H9: =(COUNTA(F8:F12)/5) -> 1 | J9: 31 | O9: Infrequent (around 3 times per minute or less) | P9: More than 4 hours
A10: J | B10: work duration | C10: =IF(Home!AN21=0,0,Home!AN21) -> 0 | E10: Shoulder Score 3 | F10: =IF(OR(C9="",C10=0),0,C9*2+2*(C10-1)) -> 0 | J10: 41 | O10: Frequent (around 8 times per minute)
A11: K | B11: One hand force max | C11: 1 | E11: Shoulder Score 4 | F11: =IF(OR(C9="",C10=0),0,C5*2+2*(C9-1)) -> 0 | O11: Very frequent (around 12 times per minute or more) | P11: Low (e.g. less than 1 kg/2 lb)
A12: L | B12: visual demand | C12: =Home!AN47 -> 0 | E12: Shoulder Score 5 | F12: =IF(C10=0,0,C5*2+2*(C10-1)) -> 0 | P12: Medium (e.g., 1 to 4 kg or 2 to 9 lb)
A13: M | B13: driving | C13: =Home!AN102 -> 0 | E13: Wrist Score 1 | F13: =IF(C10=0,0,C7*2+2*(C11-1)) -> 0 | H13: Wrist Score | I13: =SUM(F13:F17) -> 0 | J13: 21 | K13: =IF(I13<J13,$A$19,IF(I13<J14,$A$20,IF(I13<J15,$A$21,$A$22))) -> 1 | L13: =IF(K13=4,$B$22,IF(K13=3,$B$21,IF(K13=2,$B$20,IF(K13=1,$B$19,"")))) -> Low risk | O13: At or below waist height | P13: High (e.g., more than 4 kg/9 lb)
A14: N | B14: vibrating tools | C14: =Home!AN92 -> 0 | E14: Wrist Score 2 | F14: =IF(C10=0,0,C7*2+2*(C10-1)) -> 0 | H14: =COUNTA(F13:F17)/5 -> 1 | J14: 31 | O14: At about chest height
A15: P | B15: work pace | C15: =Home!AR95 -> 0 | E15: Wrist Score 3 | F15: =IF(C10=0,0,C10*2+2*(C11-1)) -> 0 | J15: 41 | O15: At or above shoulder height | P15: Low (almost no need to view fine details)
A16: Q | B16: stress | C16: =Home!AR98 -> 0 | E16: Wrist Score 4 | F16: =IF(C10=0,0,C6*2+2*(C11-1)) -> 0 | P16: High (need to view some fine details)
E17: Wrist Score 5 | F17: =IF(C10=0,0,C6*2+2*(C10-1)) -> 0 | O17: Infrequent (some intermittent movement)
E18: Neck Score 1 | F18: =IF(OR(C10=0,C8=0),0,C8*2+2*(C10-1)) -> 0 | H18: Neck Score | I18: =IF(OR(F18=0,F19=0),0,F18+F19) -> 0 | J18: 10 | K18: =IF(I18<J19,$A$19,IF(I18<J18,$A$20,$A$21)) -> 1 | L18: =IF(K18=4,$B$22,IF(K18=3,$B$21,IF(K18=2,$B$20,IF(K18=1,$B$19,"")))) -> Low risk | O18: Frequent (regular movement with some pauses) | P18: Less than one hour per day or never
A19: 1 | B19: Low risk | E19: Neck Score 2 | F19: =IF(OR(C10=0,C12=0),0,C12*2+2*(C10-1)) -> 0 | H19: =IF(SUM(F18:F19)=0,"",(COUNTA(F18:F19)/2)) ->  | J19: 8 | O19: Very frequent (almost continuous movement) | P19: Between 1 and 4 hours per day
A20: 2 | B20: Moderate risk | H20: Driving | I20: =IF(C13=1,1,IF(C13=2,4,IF(C13=3,9,0))) -> 0 | L20: =IF(I20=1,$B$19,IF(I20=4,$B$20,IF(I20=9,$B$21,""))) ->  | P20: More than 4 hours per day
A21: 3 | B21: High risk | H21: Vibration | I21: =IF(C14=1,1,IF(C14=2,4,IF(C14=3,9,0))) -> 0 | L21: =IF(I21=1,$B$19,IF(I21=4,$B$20,IF(I21=9,$B$21,""))) ->  | O21: An almost straight wrist
A22: 4 | B22: Very high risk | H22: Work pace | I22: =IF(C15=1,1,IF(C15=2,4,IF(C15=3,9,0))) -> 0 | L22: =IF(I22=1,$B$19,IF(I22=4,$B$20,IF(I22=9,$B$21,""))) ->  | O22: A deviated or bent wrist | P22: Never
H23: Stress | I23: =IF(C16=1,1,IF(C16=2,4,IF(C16=3,9,IF(C16=4,16,0)))) -> 0 | L23: =IF(I23=1,$B$19,IF(I23=4,$B$20,IF(I23=9,$B$21,""))) ->  | P23: Sometimes
O24: 10 times per minute or less | P24: Often
O25: 11 to 20 times per minute
O26: More than 20 times per minute | P26: Not at all stressful
P27: Mildly stressful
O28: No | P28: Moderately stressful
O29: Yes, occasionally | P29: Very stressful
O30: Yes, continuously

Sheet Vibration (hidden)
A1: =COMPARISON!AJ55 -> 1 | B1: <- QEC on/off: if "o" then no QEC, but HAV
G2: Tct
A3: EU HAV | B3: Type | C3: Make | D3: Hours | E3: Vibration | F3: 8HrEq | G3: =SUM(G4:G9) -> 0
A4: Tool1 | G4: =IF(I4=3,1,0) -> 0 | H4: =COUNTBLANK(D4:F4) -> 3 | I4: =3+H4 -> 6
A5: Tool2 | G5: 0 | H5: 3 | I5: 6
A6: Tool3 | G6: 0 | H6: 3 | I6: 6
A7: Tool4 | G7: 0 | H7: 3 | I7: 6
A8: Tool5 | G8: 0 | H8: 3 | I8: 6
A9: Tool6 | G9: 0 | H9: 3 | I9: 6
D10: =SUM(D4:D9) -> 0 | E10: =SQRT(SUMSQ(E4:E9)) -> 0 | F10: =IF(OR(SQRT(SUMSQ(F4:F9))<0,D10>24)," ",SQRT(SUMSQ(F4:F9))) -> 0
E11: HAVrisk | F11: =IF(A1=1,Home!$AN$92,IF(AND(F10=0,Home!AN49=0,Home!AN50=0),0,IF(F10>5,3,IF(F10>2.5,2,IF(OR(F10>0,Home!AN49=1,Home!AN50=100),1,F12))))) -> 0
F12: 0
G13: Vct
A14: EU WBV | B14: Type | C14: Make | D14: Hours | E14: Vibration | F14: 8HrEq | G14: =SUM(G15:G18) -> 0
A15: Vehicle1 | G15: =IF(I15=3,1,0) -> 0 | H15: =COUNTBLANK(D15:F15) -> 3 | I15: =5+H15-2 -> 6
A16: Vehicle2 | G16: =IF(I16=3,1,0) -> 0 | H16: =COUNTBLANK(D16:F16) -> 3 | I16: =5+H16-2 -> 6
A17: Vehicle3 | G17: =IF(I17=3,1,0) -> 0 | H17: =COUNTBLANK(D17:F17) -> 3 | I17: =5+H17-2 -> 6
A18: Vehicle4 | G18: =IF(I18=3,1,0) -> 0 | H18: =COUNTBLANK(D18:F18) -> 3 | I18: =5+H18-2 -> 6
D19: =SUM(D15:D18) -> 0 | E19: =SQRT(SUMSQ(E15:E18)) -> 0 | F19: =SQRT(SUMSQ(F15:F18)) -> 0 | G19: =IF($BA$99=0,"",IF($BA$99<=0.5,1,IF($BA$99>1.15,3,2))) -> 
E20: WBVrisk | F20: =IF(Home!AN100=1,1,IF(F19>1.15,3,IF(AND(F19<=1.15,F19>0.5),2,IF(AND(F19>0,F19<=0.5),1,F21)))) -> 0
F21: 0

Sheet Data (hidden)
A1: item | B1: PageIndex | C1: PageName | D1: FrameName | E1: Value | F1: Caption | G1: Frame# | H1: ControlType | I1: Control# | J1: Control
A2: 1 | B2: 1 | C2: Job Basics | D2: Oberversations by | G2: 72 | H2: TextBox | I2: 55 | J2: =IF(I2<>"",H2&"."&I2,"") -> TextBox.55
A3: 2 | B3: 1 | C3: Job Basics | D3: Work description | G3: 3 | H3: TextBox | I3: 2 | J3: TextBox.2
A4: 3 | B4: 1 | C4: Job Basics | D4: Work Duration | E4: 2 | F4: 2 to 4 hours | G4: 14
A5: 4 | B5: 1 | C5: Job Basics | D5: Pace of Work | E5: 2 | F5: Sometimes | G5: 26
A6: 5 | B6: 1 | C6: Job Basics | D6: Max Wt Handled | E6: 2 | F6: Moderate (12 to 22 lbs.) | G6: 93
A7: 6 | B7: 1 | C7: Job Basics | D7: Work-Stress | E7: 3 | F7: Moderately stressful | G7: 27
A8: 7 | B8: 2 | C8: Back | D8: Back Position | E8: 3 | F8: Excessively flexed, twisted, or bent to the side | G8: 1
A9: 8 | B9: 2 | C9: Back | D9: Back Activity | E9: 1 | F9: No | G9: 4
A10: 9 | B10: 3 | C10: Work Posture | D10: Squatting | E10: 1 | F10: None, or less than 2 hours per day | G10: 6
A11: 10 | B11: 3 | C11: Work Posture | D11: Kneeling | E11: 2 | F11: 2-4 hours total per day | G11: 10
A12: 11 | B12: 4 | C12: Shoulder | D12: Hand Position | G12: 9
A13: 12 | B13: 4 | C13: Shoulder | D13: Shoulder Movements | G13: 11
A14: 13 | B14: 4 | C14: Shoulder | D14: IV management | G14: 79
A15: 14 | B15: 4 | C15: Shoulder | D15: Overhead work (IV mgt) | G15: 77
A16: 15 | B16: 5 | C16: Neck | D16: Neck bending (WA) | G16: 76
A17: 16 | B17: 5 | C17: Neck | D17: Visual demand | G17: 78
A18: 17 | B18: 5 | C18: Neck | D18: Neck bending (QEC) | G18: 2
A19: 18 | B19: 6 | C19: Hand exertions | D19: Hand Exertion description | G19: 48 | H19: TextBox | I19: 6 | J19: TextBox.6
A20: 19 | B20: 6 | C20: Hand exertions | D20: SI Daily Duration | G20: 40 | H20: ComboBox | I20: 2 | J20: ComboBox.2
A21: 20 | B21: 6 | C21: Hand exertions | D21: SI Speed | G21: 39 | H21: ComboBox | I21: 3 | J21: ComboBox.3
A22: 21 | B22: 6 | C22: Hand exertions | D22: SI Frequency | G22: 37 | H22: ComboBox | I22: 4 | J22: ComboBox.4
A23: 22 | B23: 6 | C23: Hand exertions | D23: SI Duration of exertion | G23: 85 | H23: ComboBox | I23: 15 | J23: ComboBox.15
A24: 23 | B24: 6 | C24: Hand exertions | D24: SI Force | G24: 35 | H24: ComboBox | I24: 6 | J24: ComboBox.6
A25: 24 | B25: 6 | C25: Hand exertions | D25: SI Posture | G25: 38 | H25: ComboBox | I25: 5 | J25: ComboBox.5
A26: 25 | B26: 7 | C26: Repetition | D26: HRM Duration | G26: 95
A27: 26 | B27: 7 | C27: Repetition | D27: HRM other risk factors | G27: 96
A28: 27 | B28: 7 | C28: Repetition | D28: Intensive keying (IK) | G28: 43
A29: 28 | B29: 7 | C29: Repetition | D29: IK Duration | G29: 16
A30: 29 | B30: 7 | C30: Repetition | D30: IK neutral posture | G30: 67 | H30: CheckBox | I30: 14 | J30: CheckBox.14
A31: 30 | B31: 7 | C31: Repetition | D31: IK deviation | G31: 67 | H31: CheckBox | I31: 6 | J31: =IF(I31<>"",H31&"."&I31,"") -> CheckBox.6
A32: 31 | B32: 7 | C32: Repetition | D32: IK Flexion | G32: 67 | H32: CheckBox | I32: 5 | J32: CheckBox.5
A33: 32 | B33: 7 | C33: Repetition | D33: IK extension | G33: 67 | H33: CheckBox | I33: 4 | J33: CheckBox.4
A34: 33 | B34: 7 | C34: Repetition | D34: Hand impacts (HI) | G34: 13
A35: 34 | B35: 7 | C35: Repetition | D35: HI frequency | G35: 12
A36: 35 | B36: 7 | C36: Repetition | D36: Foot controls (FC) | G36: 22
A37: 36 | B37: 7 | C37: Repetition | D37: FC other factors | G37: 23
A38: 37 | B38: 8 | C38: Gripping | D38: Pinch duration | G38: 68
A39: 38 | B39: 8 | C39: Gripping | D39: Pinch no other factors | G39: 69 | H39: CheckBox | I39: 16 | J39: =IF(I39<>"",H39&"."&I39,"") -> CheckBox.16
A40: 39 | B40: 8 | C40: Gripping | D40: Pinch repetitive motions | G40: 69 | H40: CheckBox | I40: 1 | J40: =IF(I40<>"",H40&"."&I40,"") -> CheckBox.1
A41: 40 | B41: 8 | C41: Gripping | D41: Pinch deviation | G41: 69 | H41: CheckBox | I41: 123 | J41: CheckBox.123
A42: 41 | B42: 8 | C42: Gripping | D42: Pinch flexion | G42: 69 | H42: CheckBox | I42: 2 | J42: CheckBox.2
A43: 42 | B43: 8 | C43: Gripping | D43: Pinch extension | G43: 69 | H43: CheckBox | I43: 3 | J43: CheckBox.3
A44: 43 | B44: 8 | C44: Gripping | D44: Power duration | G44: 71
A45: 44 | B45: 8 | C45: Gripping | D45: Power no other factors | G45: 70 | H45: CheckBox | I45: 15 | J45: CheckBox.15
A46: 45 | B46: 8 | C46: Gripping | D46: Power repetitive motions | G46: 70 | H46: CheckBox | I46: 11 | J46: CheckBox.11
A47: 46 | B47: 8 | C47: Gripping | D47: Power deviation | G47: 70 | H47: CheckBox | I47: 124 | J47: CheckBox.124
A48: 47 | B48: 8 | C48: Gripping | D48: Power flexion | G48: 70 | H48: CheckBox | I48: 12 | J48: CheckBox.12
A49: 48 | B49: 8 | C49: Gripping | D49: Power extension | G49: 70 | H49: CheckBox | I49: 13 | J49: CheckBox.13
A50: 49 | B50: 9 | C50: Mod Lifting | D50: Heavy lifting | G50: 89
A51: 50 | B51: 9 | C51: Mod Lifting | D51: Heavy/frequent lifting | G51: 100
A52: 51 | B52: 9 | C52: Mod Lifting | D52: Frequent lifting | G52: 90
A53: 52 | B53: 9 | C53: Mod Lifting | D53: Awkward lifting | G53: 91
A54: 53 | B54: 10 | C54: High Risk lifting | D54: Lift description | G54: 15 | H54: TextBox | I54: 27 | J54: TextBox.27
A55: 54 | B55: 10 | C55: High Risk lifting | D55: Max wt lifted | G55: 15 | H55: TextBox | I55: 26 | J55: TextBox.26
A56: 55 | B56: 10 | C56: High Risk lifting | D56: Lift duration | G56: 19
A57: 56 | B57: 10 | C57: High Risk lifting | D57: Twisting | G57: 87
A58: 57 | B58: 10 | C58: High Risk lifting | D58: Lift frequency | G58: 28 | H58: ComboBox | I58: 16 | J58: ComboBox.16
A59: 58 | B59: 10 | C59: High Risk lifting | D59: Lift proximity | G59: 18
A60: 59 | B60: 10 | C60: High Risk lifting | D60: Lifting hand height | G60: 17
A61: 60 | B61: 11 | C61: Carrying | D61: Carry description | G61: 46 | H61: TextBox | I61: 25 | J61: TextBox.25
A62: 61 | B62: 11 | C62: Carrying | D62: Carry weight | G62: 66 | H62: TextBox | I62: 24 | J62: TextBox.24
A63: 62 | B63: 11 | C63: Carrying | D63: Carry distance | G63: 21
A64: 63 | B64: 11 | C64: Carrying | D64: Carry height (elbow post) | G64: 20
A65: 64 | B65: 11 | C65: Carrying | D65: Carry frequency | G65: 32
A66: 65 | B66: 12 | C66: Pushing/Pulling | D66: Push/Pull description | G66: 58 | H66: TextBox | I66: 29 | J66: TextBox.29
A67: 66 | B67: 12 | C67: Pushing/Pulling | D67: Effort type | G67: 65
A68: 67 | B68: 12 | C68: Pushing/Pulling | D68: Force | G68: 57 | H68: TextBox | I68: 28 | J68: TextBox.28
A69: 68 | B69: 12 | C69: Pushing/Pulling | D69: Distance | G69: 25 | H69: ComboBox | I69: 12 | J69: ComboBox.12
A70: 69 | B70: 12 | C70: Pushing/Pulling | D70: Hand Height | G70: 24
A71: 70 | B71: 12 | C71: Pushing/Pulling | D71: Frequency | G71: 42 | H71: ComboBox | I71: 13 | J71: ComboBox.13
A72: 71 | B72: 13 | C72: Hand/Arm Vibration | D72: QEC vibration | G72: 29
A73: 72 | B73: 13 | C73: Hand/Arm Vibration | D73: Moderate vib tools | G73: 80
A74: 73 | B74: 13 | C74: Hand/Arm Vibration | D74: High vib tools | G74: 83
A75: 74 | B75: 13 | C75: Hand/Arm Vibration | D75: HAV tool type | G75: 82 | H75: TextBox | I75: 57 | J75: TextBox.57
A76: 75 | B76: 13 | C76: Hand/Arm Vibration | D76: HAV tool make/model | G76: 82 | H76: TextBox | I76: 56 | J76: TextBox.56
A77: 76 | B77: 13 | C77: Hand/Arm Vibration | D77: HAV tool hours/day | G77: 82 | H77: TextBox | I77: 33 | J77: TextBox.33
A78: 77 | B78: 13 | C78: Hand/Arm Vibration | D78: HAV tool vibration | G78: 82 | H78: TextBox | I78: 32 | J78: TextBox.32
A79: 78 | B79: 14 | C79: Whole Body Vibration | D79: Whole Body Vibration | G79: 86
A80: 79 | B80: 14 | C80: Whole Body Vibration | D80: WBV vehicle type | G80: 82 | H80: TextBox | I80: 57 | J80: TextBox.57
A81: 80 | B81: 14 | C81: Whole Body Vibration | D81: WBV vehicle make/model | G81: 83 | H81: TextBox | I81: 56 | J81: TextBox.56
A82: 81 | B82: 14 | C82: Whole Body Vibration | D82: WBV vehicle hours/day | G82: 84 | H82: TextBox | I82: 33 | J82: TextBox.33
A83: 82 | B83: 14 | C83: Whole Body Vibration | D83: WBV vehicle vibration | G83: 85 | H83: TextBox | I83: 32 | J83: TextBox.32
J104: =IF(I104<>"",H104&"."&I104,"") -> 
